{"text_format":"1","workbook":"xlsx","n_sheets":8,"sheets":["10-JEDNOSTKI BUDZETOWE","40-FUNDUSZE CELOWE","99-DYSPONENT ZBIORCZO","LISTA","RBZE","RBZF","RBZC","RBZD"],"not_rendered":{"charts":0,"images":0,"macros":1,"external_links":0,"defined_names":17,"comments":3,"pivot_tables":0},"unopened":[],"bounds":{"document_bytes":16777216,"sheet_cells":100000,"rows_first":2000,"rows_last":500,"rows_between":2000,"halvings":0,"cell_chars":16384,"cell_head_chars":4096},"cells_cut":0,"cells_raw":0,"read":"whole","date_system":"1900"}

{"sheet":"10-JEDNOSTKI BUDZETOWE","index":0,"n_rows":106,"n_cols":21,"rows_kept":106,"cut":false,"hidden":false,"merged":[[79,0,79,1],[80,0,80,1],[81,0,81,1],[78,0,78,1],[52,5,53,5],[70,0,70,2],[71,0,71,2],[72,0,72,2],[73,0,73,2],[74,0,74,2],[52,7,53,7],[56,1,56,4],[59,0,59,2],[60,0,60,2],[61,0,61,2],[2,0,2,1],[5,0,5,1],[7,0,7,1],[16,0,16,1],[44,0,44,4],[46,0,46,4],[45,0,45,4],[40,0,40,4],[23,0,23,1],[8,2,8,4],[38,6,38,11],[47,0,47,4],[92,5,92,7],[85,0,85,1],[86,0,86,1],[87,0,87,1],[54,1,54,4],[55,1,55,4],[52,0,53,0],[52,1,53,4],[64,0,66,2],[64,3,66,3],[64,4,64,8],[64,9,66,9],[65,4,66,4],[65,5,66,5],[65,7,66,7],[65,8,66,8],[67,0,67,2],[68,0,68,2],[69,0,69,2]]}
[null,null,null,null,null,null,null,null,null,null,null,null,null,null,null,null,null,null,null,null,0]
["Nazwa jednostki sprawozdawczej ",null,null,"Rb-Z   KWARTALNE SPRAWOZDANIE O STANIE ZOBOWIĄZAŃ WG TYTUŁÓW DŁUŻNYCH ORAZ PORĘCZEŃ I GWARANCJI ",null,null,null,null,null,null,null,null,null,null,null,null,null,null,null,null,{"$f":"MAXA('40-FUNDUSZE CELOWE'!U1)","v":0}]
[{"$f":"IF(U$1<>0,INDEX(LISTANAZW,U1,1),IF(U$2<>0,INDEX(LISTANAZW,U2,1),\"\"))","v":""}]
[null,null,null,null,null,"jednostki budżetowej "]
["Adres jednostki sprawozdawczej",null,null,null,null,null,null,null,null,null,null,null,null,"Adresat:",null,null,null,null,null,null,{"$f":"IF(VALUE(M11)=0,\"\",VALUE(M11))","v":""}]
[null,null,null,null,null,null,null,null,null,null,null,null,null,"Urząd Statystyczny we Wrocławiu"]
["Numer identyfikacyjny REGON",null,"liczba identyfik.jedn.",null,null,null,null,null,null,null,null,null,null,"ul. Oławska 31"]
[{"$f":"IF(U$1<>0,INDEX(LISTAREG,$U1,1),IF(U$2<>0,INDEX(LISTAREG,$U2,1),\"\"))","v":""},null,null,null,null,"wg stanu na koniec",null,null,"kwartału","  roku",null,null,null,"50-950 Wrocław"]
["Nazwa województwa",null,null,null,null,null,null,"SYMBOLE"]
["Nazwa powiatu / związku",null,null,null,null,"WOJ.","POWIAT","GMINA","TYP GM.","ZWIĄZEK JST","TYP ZW.","GRUPA","CZĘŚĆ BUDŻ."]
["Nazwa gminy / związku",null,null,null,null,null,null,null,null,null,null,10]
[]
[" A. Zobowiązania według tytułów dłużnych"]
[]
[null,null,null,null,null,null,null,"w i e r z y c i e l e   k r a j o w i",null,null,null,null,null,null,null,"             w i e r z y c i e l e   z a g r a n i c z n i "]
[null,null,"kwota"]
["Wyszczególnienie",null,"zadłużenia",null,"sektor",null,null,null,null,null,null,null,null,null,"instytucje"]
[null,null,"ogółem","ogółem","finansów","grupa I","grupa II","grupa III","grupa IV","bank","banki","pozostałe","przedsiębiorstwa ","gospodarstwa","niekomercyjne",null,"podmioty","pozostałe"]
[null,null,"(kol. 3+15)","(kol 4+9+10+11+","publicznych",null,null,null,null,"centralny",null,"krajowe","niefinansowe","domowe","działające ","ogółem","należące ","podmioty"]
[null,null,null,"12+13+14)","ogółem",null,null,null,null,null,null,"instytucje",null,null,"na rzecz",null,"do strefy","zagraniczne"]
[null,null,null,null,"(kol 5+6+7+8)",null,null,null,null,null,null,"finansowe",null,null,"gospodarstw","(kol. 16+17)","euro"]
[null,null,null,null,null,null,null,null,null,null,null,null,null,null,"domowych"]
[1,null,2,3,4,5,6,7,8,9,10,11,12,13,14,15,16,17]
["E. ZOBOWIĄZANIA WG TYTUŁÓW DŁUŻNYCH (E1+E2+E3+E4)",null,{"$f":"C26+C29+C32+C33","v":0},0,0,0,0,0,0,0,0,0,0,0,0,{"$f":"P26+P29+P32+P33","v":0},{"$f":"Q26+Q29+Q32+Q33","v":0},{"$f":"R26+R29+R32+R33","v":0}]
[]
["E1. papiery wartościowe  (E1.1+E1.2)",null,{"$f":"C27+C28","v":0},{"$f":"D27+D28","v":0},{"$f":"E27+E28","v":0},{"$f":"F27+F28","v":0},{"$f":"G27+G28","v":0},0,0,0,0,0,0,0,0,{"$f":"P27+P28","v":0},{"$f":"Q27+Q28","v":0},{"$f":"R27+R28","v":0}]
["      E1.1. krótkoterminowe",null,{"$f":"D27+P27","v":0},{"$f":"E27+J27+K27+L27+M27+N27+O27","v":0},{"$f":"F27+G27+H27+I27","v":0},null,null,null,null,null,null,null,null,null,null,{"$f":"Q27+R27","v":0}]
["      E1.2. długoterminowe",null,{"$f":"D28+P28","v":0},{"$f":"E28+J28+K28+L28+M28+N28+O28","v":0},{"$f":"F28+G28+H28+I28","v":0},null,null,null,null,null,null,null,null,null,null,{"$f":"Q28+R28","v":0}]
["E2. kredyty i pożyczki (E2.1+E2.2)",null,{"$f":"C30+C31","v":0},{"$f":"D30+D31","v":0},{"$f":"E30+E31","v":0},{"$f":"F30+F31","v":0},{"$f":"G30+G31","v":0},0,0,0,0,0,0,0,0,{"$f":"P30+P31","v":0},{"$f":"Q30+Q31","v":0},{"$f":"R30+R31","v":0}]
["      E2.1. krótkoterminowe",null,{"$f":"D30+P30","v":0},{"$f":"E30+J30+K30+L30+M30+N30+O30","v":0},{"$f":"F30+G30+H30+I30","v":0},null,null,null,null,null,null,null,null,null,null,{"$f":"Q30+R30","v":0}]
["      E2.2. długoterminowe",null,{"$f":"D31+P31","v":0},{"$f":"E31+J31+K31+L31+M31+N31+O31","v":0},{"$f":"F31+G31+H31+I31","v":0},null,null,null,null,null,null,null,null,null,null,{"$f":"Q31+R31","v":0}]
["E3. przyjęte depozyty",null,{"$f":"D32+P32","v":0},{"$f":"E32+J32+K32+L32+M32+N32+O32","v":0},{"$f":"F32+G32+H32+I32","v":0},null,null,null,null,null,null,null,null,null,null,{"$f":"Q32+R32","v":0}]
["E4. wymagalne zobowiązania (E4.1+E4.2)",null,{"$f":"C34+C35","v":0},{"$f":"D34+D35","v":0},{"$f":"E34+E35","v":0},{"$f":"F34+F35","v":0},{"$f":"G34+G35","v":0},0,0,0,0,0,0,0,0,{"$f":"P34+P35","v":0},{"$f":"Q34+Q35","v":0},{"$f":"R34+R35","v":0}]
["      E4.1. z tyt. dostaw towarów i usług",null,{"$f":"D34+P34","v":0},{"$f":"E34+J34+K34+L34+M34+N34+O34","v":0},{"$f":"F34+G34+H34+I34","v":0},null,null,null,null,null,null,null,null,null,null,{"$f":"Q34+R34","v":0}]
["      E4.2. pozostałe",null,{"$f":"D35+P35","v":0},{"$f":"E35+J35+K35+L35+M35+N35+O35","v":0},{"$f":"F35+G35+H35+I35","v":0},null,null,null,null,null,null,null,null,null,null,{"$f":"Q35+R35","v":0}]
[]
[" B. Poręczenia i gwarancje"]
[]
[null,null,null,null,null,null,"w i e r z y c i e l e "]
[null,null,null,null,null,"Kwota ","podmioty"]
["Wyszczególnienie",null,null,null,null,"zobowiązań","sektora","grupa  I","grupa II","grupa III","grupa IV","pozostałe "]
[null,null,null,null,null,"ogółem","finansów",null,null,null,null,"podmioty"]
[null,null,null,null,null,"(kol. 3+8)","publicznych"]
[null,null,null,null,null,null,"(kol.4+5+6+7)"]
[1,null,null,null,null,2,3,4,5,6,7,8]
["F1. wartość nominalna niewymagalnych (potencjalnych) zobowiązań z tytułu udzielonych poręczeń i gwarancji na koniec okresu sprawozdawczego",null,null,null,null,{"$f":"G46+L46","v":0},{"$f":"H46+I46+J46+K46","v":0}]
["F2. wartość nominalna wymagalnych zobowiązań z tytułu udzielonych poręczeń i gwarancji na koniec okresu sprawozdawczego",null,null,null,null,{"$f":"G47+L47","v":0},{"$f":"H47+I47+J47+K47","v":0}]
["F3. wartość poręczeń i gwarancji udzielonych w okresie sprawozdawczym",null,null,null,null,{"$f":"G48+L48","v":0},{"$f":"H48+I48+J48+K48","v":0}]
[]
["C. Uzupełniające dane o niektórych zobowiązaniach jednostki samorządu terytorialnego"]
[]
["C1. Kredyty i pożyczki oraz wyemitowane papiery wartościowe na realizację programów, projektów lub zadań finansowanych z udziałem środków, o których mowa w art. 5 ust. 1 pkt 2 ustawy"]
["Lp.","Wyszczególnienie",null,null,null,"Z budżetu państwa\n ogółem ","w tym","Z innych źródeł\n ogółem","w tym"]
[null,null,null,null,null,null," długoterminowe",null,"długoterminowe"]
[1,2,null,null,null,3,4,5,6]
[1,"Ogółem kredyty i pożyczki oraz wyemitowane papiery wartościowe\nw tym:"]
[2," na współfinansowanie\n       (udział własny)",null,null,null,"X","X"]
[]
["C2. Dodatkowe dane uzupełniające"]
["Wyszczególnienie ",null,null,"Plan","Wykonanie"]
[1,null,null,2,3]
["Zobowiązania związku współtworzonego przez jednostkę samorządu terytorialnego w okresie sprawozdawczym"]
[]
["C3. Zobowiązania zaliczane do tytułu dłużnego - kredyty i pożyczki "]
["Rodzaje zobowiązań zaliczanych do kredytów i pożyczek (E2. - część A)",null,null,"ogółem (kol. 3+4+6+7+8)","wierzyciele krajowi",null,null,null,null,"wierzyciele zagraniczni "]
[null,null,null,null,"banki","pozostałe krajowe instytucje finansowe   ogółem","w  tym","przedsiębiorstwa niefinansowe","pozostali wierzyciele"]
[null,null,null,null,null,null,"instytucje parabankowe"]
[1,null,null,2,3,4,5,6,7,8]
["1. umowy kredytu i pożyczki",null,null,{"$f":"SUM(E69:F69,H69:J69)","v":0}]
["2. umowy partnerstwa publiczno-prywatnego",null,null,{"$f":"SUM(E70:F70,H70:J70)","v":0}]
["3. papiery wartościowe, których zbywalność jest ograniczona ",null,null,0]
["4. sprzedaż na raty",null,null,0]
["5. leasing finansowy",null,null,0]
["6. umowy nienazwane o charakterze kredytu lub pożyczki ",null,null,0]
["Ogółem ",null,null,0,{"$f":"SUM(E69:E74)","v":0},{"$f":"SUM(F69:F74)","v":0},0,0,0,0]
[]
["D. Dane o krótkoterminowych zobowiązaniach wynikających z umów nienazwanych związanych z finansowaniem usług, dostaw, robót budowlanych"]
[]
["Wyszczególnienie",null,"Kwota zobowiązań ogółem"]
[1,null,2]
["A. krótkoterminowe zobowiązania przejęte przez instytucje finansowe"]
["B. krótkoterminowe zobowiązania zrestrukturyzowane"]
[]
["E. Zobowiązania z tytułu odsetek jednostek posiadających osobowość prawną z wyłączeniem jednostek samorządu terytorialnego"]
[]
["Wyszczególnienie",null,"kwota zobowiązań ogółem\n(kol. 3+4)","odsetki naliczone od zobowiązań niewymagalnych","odsetki naliczone od zobowiązań wymagalnych"]
[1,null,2,3,4]
["Wartość odsetek ",null,{"$f":"D88+E88","v":0}]
[]
["F. Lista jednostek sporządzajacych sprawozdania"]
[]
["Lp.","REGON","REGON 9-cyfrowy","REGON 14-cyfrowy","Brak nr REGON","Nazwa jednostki"]
[1,null,null,null,null,null,null,null,{"$f":"regon9(B93)","v":false}]
[]
[]
[]
[null,null,null,null,null,null,null,null,null,null,null,null," "]
[]
["……………………",null,null,"……………",null,"………………",null,null,"…………………"]
["Główny Księgowy* / Skarbnik",null,null,"telefon",null,"rok m-c dzień",null,null,"Kierownik jednostki (jednostki obsługującej)/ Przewodniczący Zarządu"]
[]
["* Nie dotyczy sprawozdań zbiorczych sporządzanych przez RIO. W przypadku braku głównego księgowego podpisuje tylko kierownik jednostki."]
[]
[]
[]
[null,null,null,null,null,null,null,null,null,null,null,null," "]

{"sheet":"40-FUNDUSZE CELOWE","index":1,"n_rows":106,"n_cols":21,"rows_kept":106,"cut":false,"hidden":false,"merged":[[52,5,53,5],[52,7,53,7],[81,0,81,1],[78,0,78,1],[79,0,79,1],[80,0,80,1],[54,1,54,4],[61,0,61,2],[55,1,55,4],[56,1,56,4],[59,0,59,2],[8,2,8,4],[40,0,40,4],[85,0,85,1],[86,0,86,1],[87,0,87,1],[73,0,73,2],[74,0,74,2],[60,0,60,2],[46,0,46,4],[47,0,47,4],[23,0,23,1],[22,0,22,1],[52,0,53,0],[52,1,53,4],[92,5,92,7],[2,0,2,1],[5,0,5,1],[7,0,7,1],[16,0,16,1],[44,0,44,4],[45,0,45,4],[64,0,66,2],[64,3,66,3],[64,4,64,8],[67,0,67,2],[68,0,68,2],[69,0,69,2],[70,0,70,2],[71,0,71,2],[72,0,72,2],[64,9,66,9],[65,4,66,4],[65,5,66,5],[65,7,66,7],[65,8,66,8]]}
[null,null,null,null,null,null,null,null,null,null,null,null,null,null,null,null,null,null,null,null,0]
["Nazwa jednostki sprawozdawczej ",null,null,"Rb-Z   KWARTALNE SPRAWOZDANIE O STANIE ZOBOWIĄZAŃ WG TYTUŁÓW DŁUŻNYCH ORAZ PORĘCZEŃ I GWARANCJI ",null,null,null,null,null,null,null,null,null,null,null,null,null,null,null,null,{"$f":"MAX('10-JEDNOSTKI BUDZETOWE'!U1)","v":0}]
[{"$f":"IF(U$1<>0,INDEX(LISTANAZW,U1,1),IF(U$2<>0,INDEX(LISTANAZW,U2,1),\"\"))","v":""}]
[null,null,null,null,null,"funduszu celowego bez osobowości prawnej"]
["Adres jednostki sprawozdawczej",null,null,null,null,null,null,null,null,null,null,null,null,"Adresat:",null,null,null,null,null,null,{"$f":"IF(VALUE(M11)=0,\"\",VALUE(M11))","v":""}]
[null,null,null,null,null,null,null,null,null,null,null,null,null,"Urząd Statystyczny we Wrocławiu"]
["Numer identyfikacyjny REGON",null,"liczba identyfik.jedn.",null,null,null,null,null,null,null,null,null,null,"ul. Oławska 31"]
[{"$f":"IF(U$1<>0,INDEX(LISTAREG,$U1,1),IF(U$2<>0,INDEX(LISTAREG,$U2,1),\"\"))","v":""},null,null,null,null,"wg stanu na koniec",null,null,"kwartału","  roku",null,null,null,"50-950 Wrocław"]
["Nazwa województwa",null,null,null,null,null,null,"SYMBOLE"]
["Nazwa powiatu / związku",null,null,null,null,"WOJ.","POWIAT","GMINA","TYP GM.","ZWIĄZEK JST","TYP ZW.","GRUPA","CZĘŚĆ BUDŻ.",null,null,null,null,null,null,null,0]
["Nazwa gminy / związku",null,null,null,null,null,null,null,null,null,null,40]
[]
[" A. Zobowiązania według tytułów dłużnych"]
[]
[null,null,null,null,null,null,null,"w i e r z y c i e l e   k r a j o w i",null,null,null,null,null,null,null,"             w i e r z y c i e l e   z a g r a n i c z n i "]
[null,null,"kwota"]
["Wyszczególnienie",null,"zadłużenia",null,"sektor",null,null,null,null,null,null,null,null,null,"instytucje"]
[null,null,"ogółem","ogółem","finansów","grupa I","grupa II","grupa III","grupa IV","bank","banki","pozostałe","przedsiębiorstwa ","gospodarstwa","niekomercyjne",null,"podmioty","pozostałe"]
[null,null,"(kol. 3+15)","(kol 4+9+10+11+","publicznych",null,null,null,null,"centralny",null,"krajowe","niefinansowe","domowe","działające ","ogółem","należące ","podmioty"]
[null,null,null,"12+13+14)","ogółem",null,null,null,null,null,null,"instytucje",null,null,"na rzecz",null,"do strefy","zagraniczne"]
[null,null,null,null,"(kol 5+6+7+8)",null,null,null,null,null,null,"finansowe",null,null,"gospodarstw","(kol. 16+17)","euro"]
[null,null,null,null,null,null,null,null,null,null,null,null,null,null,"domowych"]
[1,null,2,3,4,5,6,7,8,9,10,11,12,13,14,15,16,17]
["E. ZOBOWIĄZANIA WG TYTUŁÓW DŁUŻNYCH (E1+E2+E3+E4)",null,{"$f":"C26+C29+C32+C33","v":0},0,0,0,0,0,0,0,0,0,0,0,0,{"$f":"P26+P29+P32+P33","v":0},{"$f":"Q26+Q29+Q32+Q33","v":0},{"$f":"R26+R29+R32+R33","v":0}]
[]
["E1. papiery wartościowe  (E1.1+E1.2)",null,{"$f":"C27+C28","v":0},{"$f":"D27+D28","v":0},{"$f":"E27+E28","v":0},{"$f":"F27+F28","v":0},{"$f":"G27+G28","v":0},0,0,0,0,0,0,0,0,{"$f":"P27+P28","v":0},{"$f":"Q27+Q28","v":0},{"$f":"R27+R28","v":0}]
["      E1.1. krótkoterminowe",null,{"$f":"D27+P27","v":0},{"$f":"E27+J27+K27+L27+M27+N27+O27","v":0},{"$f":"F27+G27+H27+I27","v":0},null,null,null,null,null,null,null,null,null,null,{"$f":"Q27+R27","v":0}]
["      E1.2. długoterminowe",null,{"$f":"D28+P28","v":0},{"$f":"E28+J28+K28+L28+M28+N28+O28","v":0},{"$f":"F28+G28+H28+I28","v":0},null,null,null,null,null,null,null,null,null,null,{"$f":"Q28+R28","v":0}]
["E2. kredyty i pożyczki (E2.1+E2.2)",null,{"$f":"C30+C31","v":0},{"$f":"D30+D31","v":0},{"$f":"E30+E31","v":0},{"$f":"F30+F31","v":0},{"$f":"G30+G31","v":0},0,0,0,0,0,0,0,0,{"$f":"P30+P31","v":0},{"$f":"Q30+Q31","v":0},{"$f":"R30+R31","v":0}]
["      E2.1. krótkoterminowe",null,{"$f":"D30+P30","v":0},{"$f":"E30+J30+K30+L30+M30+N30+O30","v":0},{"$f":"F30+G30+H30+I30","v":0},null,null,null,null,null,null,null,null,null,null,{"$f":"Q30+R30","v":0}]
["      E2.2. długoterminowe",null,{"$f":"D31+P31","v":0},{"$f":"E31+J31+K31+L31+M31+N31+O31","v":0},{"$f":"F31+G31+H31+I31","v":0},null,null,null,null,null,null,null,null,null,null,{"$f":"Q31+R31","v":0}]
["E3. przyjęte depozyty",null,{"$f":"D32+P32","v":0},{"$f":"E32+J32+K32+L32+M32+N32+O32","v":0},{"$f":"F32+G32+H32+I32","v":0},null,null,null,null,null,null,null,null,null,null,{"$f":"Q32+R32","v":0}]
["E4. wymagalne zobowiązania (E4.1+E4.2)",null,{"$f":"C34+C35","v":0},{"$f":"D34+D35","v":0},{"$f":"E34+E35","v":0},{"$f":"F34+F35","v":0},{"$f":"G34+G35","v":0},0,0,0,0,0,0,0,0,{"$f":"P34+P35","v":0},{"$f":"Q34+Q35","v":0},{"$f":"R34+R35","v":0}]
["      E4.1. z tyt. dostaw towarów i usług",null,{"$f":"D34+P34","v":0},{"$f":"E34+J34+K34+L34+M34+N34+O34","v":0},{"$f":"F34+G34+H34+I34","v":0},null,null,null,null,null,null,null,null,null,null,{"$f":"Q34+R34","v":0}]
["      E4.2. pozostałe",null,{"$f":"D35+P35","v":0},{"$f":"E35+J35+K35+L35+M35+N35+O35","v":0},{"$f":"F35+G35+H35+I35","v":0},null,null,null,null,null,null,null,null,null,null,{"$f":"Q35+R35","v":0}]
[]
[" B. Poręczenia i gwarancje"]
[]
[null,null,null,null,null,null,"w i e r z y c i e l e "]
[null,null,null,null,null,"Kwota ","podmioty"]
["Wyszczególnienie",null,null,null,null,"zobowiązań","sektora","grupa  I","grupa II","grupa III","grupa IV","pozostałe "]
[null,null,null,null,null,"ogółem","finansów",null,null,null,null,"podmioty"]
[null,null,null,null,null,"(kol. 3+8)","publicznych"]
[null,null,null,null,null,null,"(kol.4+5+6+7)"]
[1,null,null,null,null,2,3,4,5,6,7,8]
["F1. wartość nominalna niewymagalnych (potencjalnych) zobowiązań z tytułu udzielonych poręczeń i gwarancji na koniec okresu sprawozdawczego",null,null,null,null,{"$f":"G46+L46","v":0},{"$f":"H46+I46+J46+K46","v":0}]
["F2. wartość nominalna wymagalnych zobowiązań z tytułu udzielonych poręczeń i gwarancji na koniec okresu sprawozdawczego",null,null,null,null,{"$f":"G47+L47","v":0},{"$f":"H47+I47+J47+K47","v":0}]
["F3. wartość poręczeń i gwarancji udzielonych w okresie sprawozdawczym",null,null,null,null,{"$f":"G48+L48","v":0},{"$f":"H48+I48+J48+K48","v":0}]
[]
["C. Uzupełniające dane o niektórych zobowiązaniach jednostki samorządu terytorialnego"]
[]
["C1. Kredyty i pożyczki oraz wyemitowane papiery wartościowe na realizację programów, projektów lub zadań finansowanych z udziałem środków, o których mowa w art. 5 ust. 1 pkt 2 ustawy"]
["Lp.","Wyszczególnienie",null,null,null,"Z budżetu państwa\n ogółem ","w tym","Z innych źródeł\n ogółem","w tym"]
[null,null,null,null,null,null," długoterminowe",null,"długoterminowe"]
[1,2,null,null,null,3,4,5,6]
[1,"Ogółem kredyty i pożyczki oraz wyemitowane papiery wartościowe\nw tym:"]
[2," na współfinansowanie\n       (udział własny)",null,null,null,"X","X"]
[]
["C2. Dodatkowe dane uzupełniające"]
["Wyszczególnienie ",null,null,"Plan","Wykonanie"]
[1,null,null,2,3]
["Zobowiązania związku współtworzonego przez jednostkę samorządu terytorialnego w okresie sprawozdawczym"]
[]
["C3. Zobowiązania zaliczane do tytułu dłużnego - kredyty i pożyczki "]
["Rodzaje zobowiązań zaliczanych do kredytów i pożyczek (E2. - część A)",null,null,"ogółem (kol. 3+4+6+7+8)","wierzyciele krajowi",null,null,null,null,"wierzyciele zagraniczni "]
[null,null,null,null,"banki","pozostałe krajowe instytucje finansowe   ogółem","w  tym","przedsiębiorstwa niefinansowe","pozostali wierzyciele"]
[null,null,null,null,null,null,"instytucje parabankowe"]
[1,null,null,2,3,4,5,6,7,8]
["1. umowy kredytu i pożyczki",null,null,{"$f":"SUM(E69:F69,H69:J69)","v":0}]
["2. umowy partnerstwa publiczno-prywatnego",null,null,{"$f":"SUM(E70:F70,H70:J70)","v":0}]
["3. papiery wartościowe, których zbywalność jest ograniczona ",null,null,0]
["4. sprzedaż na raty",null,null,0]
["5. leasing finansowy",null,null,0]
["6. umowy nienazwane o charakterze kredytu lub pożyczki ",null,null,0]
["Ogółem ",null,null,0,{"$f":"SUM(E69:E74)","v":0},{"$f":"SUM(F69:F74)","v":0},0,0,0,0]
[]
["D. Dane o krótkoterminowych zobowiązaniach wynikających z umów nienazwanych związanych z finansowaniem usług, dostaw, robót budowlanych"]
[]
["Wyszczególnienie",null,"Kwota zobowiązań ogółem"]
[1,null,2]
["A. krótkoterminowe zobowiązania przejęte przez instytucje finansowe"]
["B. krótkoterminowe zobowiązania zrestrukturyzowane"]
[]
["E. Zobowiązania z tytułu odsetek jednostek posiadających osobowość prawną z wyłączeniem jednostek samorządu terytorialnego"]
[]
["Wyszczególnienie",null,"kwota zobowiązań ogółem\n(kol. 3+4)","odsetki naliczone od zobowiązań niewymagalnych","odsetki naliczone od zobowiązań wymagalnych"]
[1,null,2,3,4]
["Wartość odsetek ",null,{"$f":"D88+E88","v":0}]
[]
["F. Lista jednostek sporządzajacych sprawozdania"]
[]
["Lp.","REGON","REGON 9-cyfrowy","REGON 14-cyfrowy","Brak nr REGON","Nazwa jednostki"]
[1,null,null,null,null,null,null,null,{"$f":"regon9(B93)","v":false}]
[]
[]
[]
[null,null,null,null,null,null,null,null,null,null,null,null," "]
[]
["……………………",null,null,"……………",null,"………………",null,null,"…………………"]
["Główny Księgowy* / Skarbnik",null,null,"telefon",null,"rok m-c dzień",null,null,"Kierownik jednostki (jednostki obsługującej)/ Przewodniczący Zarządu"]
[]
["* Nie dotyczy sprawozdań zbiorczych sporządzanych przez RIO. W przypadku braku głównego księgowego podpisuje tylko kierownik jednostki."]
[]
[]
[]
[null,null,null,null,null,null,null,null,null,null,null,null," "]

{"sheet":"99-DYSPONENT ZBIORCZO","index":2,"n_rows":106,"n_cols":22,"rows_kept":106,"cut":false,"hidden":false,"merged":[[79,0,79,1],[80,0,80,1],[81,0,81,1],[78,0,78,1],[60,0,60,2],[61,0,61,2],[70,0,70,2],[71,0,71,2],[72,0,72,2],[73,0,73,2],[74,0,74,2],[52,7,53,7],[54,1,54,4],[55,1,55,4],[56,1,56,4],[52,1,53,4],[52,5,53,5],[8,2,8,4],[23,0,23,1],[16,0,16,1],[2,0,2,1],[5,0,5,1],[7,0,7,1],[85,0,85,1],[86,0,86,1],[87,0,87,1],[40,0,40,4],[44,0,44,4],[45,0,45,4],[46,0,46,4],[47,0,47,4],[52,0,53,0],[59,0,59,2],[64,0,66,2],[64,3,66,3],[64,4,64,8],[67,0,67,2],[68,0,68,2],[69,0,69,2],[64,9,66,9],[65,4,66,4],[65,5,66,5],[65,7,66,7],[65,8,66,8]]}
[null,null,null,null,null,null,null,null,null,null,null,null,null,null,null,null,null,null,null,null,0]
["Nazwa jednostki sprawozdawczej ",null,null,"Rb-Z   KWARTALNE SPRAWOZDANIE O STANIE ZOBOWIĄZAŃ WG TYTUŁÓW DŁUŻNYCH ORAZ PORĘCZEŃ I GWARANCJI ",null,null,null,null,null,null,null,null,null,null,null,null,null,null,null,null,{"$f":"MAX('10-JEDNOSTKI BUDZETOWE:40-FUNDUSZE CELOWE'!U1)","v":0},"regon"]
[{"$f":"IF(U$1<>0,INDEX(LISTANAZW,U1,1),IF(U$2<>0,INDEX(LISTANAZW,U2,1),\"Brak danych o jednostce !!!\"))","v":"Brak danych o jednostce !!!"},null,null,null,null,null,null,null,null,null,null,null,null,null,null,null,null,null,null,null,{"$f":"COUNTA('10-JEDNOSTKI BUDZETOWE:40-FUNDUSZE CELOWE'!H8)","v":0},"kwartal"]
[null,null,null,null,null,null,null,null,null,null,null,null,null,null,null,null,null,null,null,{"$f":"MIN('10-JEDNOSTKI BUDZETOWE:40-FUNDUSZE CELOWE'!H8)","v":0},{"$f":"MAX('10-JEDNOSTKI BUDZETOWE:40-FUNDUSZE CELOWE'!H8)","v":0}]
["Adres jednostki sprawozdawczej",null,null,null,null,null,null,null,null,null,null,null,null,"Adresat:",null,null,null,null,null,null,{"$f":"COUNTA('10-JEDNOSTKI BUDZETOWE:40-FUNDUSZE CELOWE'!K8)","v":0},"rok"]
[null,null,null,null,null,null,null,null,null,null,null,null,null,"Urząd Statystyczny we Wrocławiu",null,null,null,null,null,{"$f":"MIN('10-JEDNOSTKI BUDZETOWE:40-FUNDUSZE CELOWE'!K8)","v":0},{"$f":"MAX('10-JEDNOSTKI BUDZETOWE:40-FUNDUSZE CELOWE'!K8)","v":0}]
["Numer identyfikacyjny REGON",null,"liczba identyfik.jedn.",null,null,null,null,null,null,null,null,null,null,"ul. Oławska 31",null,null,null,null,null,null,{"$f":"COUNTA('10-JEDNOSTKI BUDZETOWE:40-FUNDUSZE CELOWE'!C8)","v":0}]
[{"$f":"IF(U2<>0,INDEX(LISTAREG,U2,1),\"Brak regonu\")","v":"Brak regonu"},null,null,null,null,"wg stanu na koniec",null,{"$f":"IF(U3=0,\"Brak nr kwartału\",U4)","v":"Brak nr kwartału"},"kwartału","  roku",{"$f":"IF(U5=0,\"Brak roku\",U6)","v":"Brak roku"},null,null,"50-950 Wrocław"]
["Nazwa województwa",null,null,null,null,null,null,"SYMBOLE"]
["Nazwa powiatu / związku",null,null,null,null,"WOJ.","POWIAT","GMINA","TYP GM.","ZWIĄZEK JST","TYP ZW.","GRUPA","CZĘŚĆ BUDŻ.",null,null,null,null,null,null,null,{"$f":"COUNTA('10-JEDNOSTKI BUDZETOWE:40-FUNDUSZE CELOWE'!M11)","v":0},"część budż."]
["Nazwa gminy / związku",null,null,null,null,null,null,null,null,null,null,99,{"$f":"IF(U10=0,\"Brak numeru cz. b.\",U12)","v":"Brak numeru cz. b."},null,null,null,null,null,null,{"$f":"MIN('10-JEDNOSTKI BUDZETOWE:40-FUNDUSZE CELOWE'!U5)","v":0},{"$f":"MAX('10-JEDNOSTKI BUDZETOWE:40-FUNDUSZE CELOWE'!U5)","v":0}]
[null,null,null,null,null,null,null,null,null,null,null,null,null,null,null,null,null,null,null,null,{"$f":"RIGHT(CONCATENATE(\"0\",MAX_CB),2)","v":"00"}]
[" A. Zobowiązania według tytułów dłużnych"]
[]
[null,null,null,null,null,null,null,"w i e r z y c i e l e   k r a j o w i",null,null,null,null,null,null,null,"             w i e r z y c i e l e   z a g r a n i c z n i ",null,null,null,null,0]
[null,null,"kwota"]
["Wyszczególnienie",null,"zadłużenia",null,"sektor",null,null,null,null,null,null,null,null,null,"instytucje"]
[null,null,"ogółem","ogółem","finansów","grupa I","grupa II","grupa III","grupa IV","bank","banki","pozostałe","przedsiębiorstwa ","gospodarstwa","niekomercyjne",null,"podmioty","pozostałe"]
[null,null,"(kol. 3+15)","(kol 4+9+10+11+","publicznych",null,null,null,null,"centralny",null,"krajowe","niefinansowe","domowe","działające ","ogółem","należące ","podmioty"]
[null,null,null,"12+13+14)","ogółem",null,null,null,null,null,null,"instytucje",null,null,"na rzecz",null,"do strefy","zagraniczne"]
[null,null,null,null,"(kol 5+6+7+8)",null,null,null,null,null,null,"finansowe",null,null,"gospodarstw","(kol. 16+17)","euro"]
[null,null,null,null,null,null,null,null,null,null,null,null,null,null,"domowych"]
[1,null,2,3,4,5,6,7,8,9,10,11,12,13,14,15,16,17]
["E. ZOBOWIĄZANIA WG TYTUŁÓW DŁUŻNYCH (E1+E2+E3+E4)",null,{"$f":"SUM('10-JEDNOSTKI BUDZETOWE:40-FUNDUSZE CELOWE'!C24)","v":0},{"$f":"SUM('10-JEDNOSTKI BUDZETOWE:40-FUNDUSZE CELOWE'!D24)","v":0},{"$f":"SUM('10-JEDNOSTKI BUDZETOWE:40-FUNDUSZE CELOWE'!E24)","v":0},{"$f":"SUM('10-JEDNOSTKI BUDZETOWE:40-FUNDUSZE CELOWE'!F24)","v":0},{"$f":"SUM('10-JEDNOSTKI BUDZETOWE:40-FUNDUSZE CELOWE'!G24)","v":0},{"$f":"SUM('10-JEDNOSTKI BUDZETOWE:40-FUNDUSZE CELOWE'!H24)","v":0},{"$f":"SUM('10-JEDNOSTKI BUDZETOWE:40-FUNDUSZE CELOWE'!I24)","v":0},{"$f":"SUM('10-JEDNOSTKI BUDZETOWE:40-FUNDUSZE CELOWE'!J24)","v":0},{"$f":"SUM('10-JEDNOSTKI BUDZETOWE:40-FUNDUSZE CELOWE'!K24)","v":0},{"$f":"SUM('10-JEDNOSTKI BUDZETOWE:40-FUNDUSZE CELOWE'!L24)","v":0},{"$f":"SUM('10-JEDNOSTKI BUDZETOWE:40-FUNDUSZE CELOWE'!M24)","v":0},{"$f":"SUM('10-JEDNOSTKI BUDZETOWE:40-FUNDUSZE CELOWE'!N24)","v":0},{"$f":"SUM('10-JEDNOSTKI BUDZETOWE:40-FUNDUSZE CELOWE'!O24)","v":0},{"$f":"SUM('10-JEDNOSTKI BUDZETOWE:40-FUNDUSZE CELOWE'!P24)","v":0},{"$f":"SUM('10-JEDNOSTKI BUDZETOWE:40-FUNDUSZE CELOWE'!Q24)","v":0},{"$f":"SUM('10-JEDNOSTKI BUDZETOWE:40-FUNDUSZE CELOWE'!R24)","v":0}]
[]
["E1. papiery wartościowe  (E1.1+E1.2)",null,{"$f":"SUM('10-JEDNOSTKI BUDZETOWE:40-FUNDUSZE CELOWE'!C26)","v":0},{"$f":"SUM('10-JEDNOSTKI BUDZETOWE:40-FUNDUSZE CELOWE'!D26)","v":0},{"$f":"SUM('10-JEDNOSTKI BUDZETOWE:40-FUNDUSZE CELOWE'!E26)","v":0},{"$f":"SUM('10-JEDNOSTKI BUDZETOWE:40-FUNDUSZE CELOWE'!F26)","v":0},{"$f":"SUM('10-JEDNOSTKI BUDZETOWE:40-FUNDUSZE CELOWE'!G26)","v":0},{"$f":"SUM('10-JEDNOSTKI BUDZETOWE:40-FUNDUSZE CELOWE'!H26)","v":0},{"$f":"SUM('10-JEDNOSTKI BUDZETOWE:40-FUNDUSZE CELOWE'!I26)","v":0},{"$f":"SUM('10-JEDNOSTKI BUDZETOWE:40-FUNDUSZE CELOWE'!J26)","v":0},{"$f":"SUM('10-JEDNOSTKI BUDZETOWE:40-FUNDUSZE CELOWE'!K26)","v":0},{"$f":"SUM('10-JEDNOSTKI BUDZETOWE:40-FUNDUSZE CELOWE'!L26)","v":0},{"$f":"SUM('10-JEDNOSTKI BUDZETOWE:40-FUNDUSZE CELOWE'!M26)","v":0},{"$f":"SUM('10-JEDNOSTKI BUDZETOWE:40-FUNDUSZE CELOWE'!N26)","v":0},{"$f":"SUM('10-JEDNOSTKI BUDZETOWE:40-FUNDUSZE CELOWE'!O26)","v":0},{"$f":"SUM('10-JEDNOSTKI BUDZETOWE:40-FUNDUSZE CELOWE'!P26)","v":0},{"$f":"SUM('10-JEDNOSTKI BUDZETOWE:40-FUNDUSZE CELOWE'!Q26)","v":0},{"$f":"SUM('10-JEDNOSTKI BUDZETOWE:40-FUNDUSZE CELOWE'!R26)","v":0}]
["      E1.1. krótkoterminowe",null,{"$f":"SUM('10-JEDNOSTKI BUDZETOWE:40-FUNDUSZE CELOWE'!C27)","v":0},{"$f":"SUM('10-JEDNOSTKI BUDZETOWE:40-FUNDUSZE CELOWE'!D27)","v":0},{"$f":"SUM('10-JEDNOSTKI BUDZETOWE:40-FUNDUSZE CELOWE'!E27)","v":0},{"$f":"SUM('10-JEDNOSTKI BUDZETOWE:40-FUNDUSZE CELOWE'!F27)","v":0},{"$f":"SUM('10-JEDNOSTKI BUDZETOWE:40-FUNDUSZE CELOWE'!G27)","v":0},{"$f":"SUM('10-JEDNOSTKI BUDZETOWE:40-FUNDUSZE CELOWE'!H27)","v":0},{"$f":"SUM('10-JEDNOSTKI BUDZETOWE:40-FUNDUSZE CELOWE'!I27)","v":0},{"$f":"SUM('10-JEDNOSTKI BUDZETOWE:40-FUNDUSZE CELOWE'!J27)","v":0},{"$f":"SUM('10-JEDNOSTKI BUDZETOWE:40-FUNDUSZE CELOWE'!K27)","v":0},{"$f":"SUM('10-JEDNOSTKI BUDZETOWE:40-FUNDUSZE CELOWE'!L27)","v":0},{"$f":"SUM('10-JEDNOSTKI BUDZETOWE:40-FUNDUSZE CELOWE'!M27)","v":0},{"$f":"SUM('10-JEDNOSTKI BUDZETOWE:40-FUNDUSZE CELOWE'!N27)","v":0},{"$f":"SUM('10-JEDNOSTKI BUDZETOWE:40-FUNDUSZE CELOWE'!O27)","v":0},{"$f":"SUM('10-JEDNOSTKI BUDZETOWE:40-FUNDUSZE CELOWE'!P27)","v":0},{"$f":"SUM('10-JEDNOSTKI BUDZETOWE:40-FUNDUSZE CELOWE'!Q27)","v":0},{"$f":"SUM('10-JEDNOSTKI BUDZETOWE:40-FUNDUSZE CELOWE'!R27)","v":0}]
["      E1.2. długoterminowe",null,{"$f":"SUM('10-JEDNOSTKI BUDZETOWE:40-FUNDUSZE CELOWE'!C28)","v":0},{"$f":"SUM('10-JEDNOSTKI BUDZETOWE:40-FUNDUSZE CELOWE'!D28)","v":0},{"$f":"SUM('10-JEDNOSTKI BUDZETOWE:40-FUNDUSZE CELOWE'!E28)","v":0},{"$f":"SUM('10-JEDNOSTKI BUDZETOWE:40-FUNDUSZE CELOWE'!F28)","v":0},{"$f":"SUM('10-JEDNOSTKI BUDZETOWE:40-FUNDUSZE CELOWE'!G28)","v":0},{"$f":"SUM('10-JEDNOSTKI BUDZETOWE:40-FUNDUSZE CELOWE'!H28)","v":0},{"$f":"SUM('10-JEDNOSTKI BUDZETOWE:40-FUNDUSZE CELOWE'!I28)","v":0},{"$f":"SUM('10-JEDNOSTKI BUDZETOWE:40-FUNDUSZE CELOWE'!J28)","v":0},{"$f":"SUM('10-JEDNOSTKI BUDZETOWE:40-FUNDUSZE CELOWE'!K28)","v":0},{"$f":"SUM('10-JEDNOSTKI BUDZETOWE:40-FUNDUSZE CELOWE'!L28)","v":0},{"$f":"SUM('10-JEDNOSTKI BUDZETOWE:40-FUNDUSZE CELOWE'!M28)","v":0},{"$f":"SUM('10-JEDNOSTKI BUDZETOWE:40-FUNDUSZE CELOWE'!N28)","v":0},{"$f":"SUM('10-JEDNOSTKI BUDZETOWE:40-FUNDUSZE CELOWE'!O28)","v":0},{"$f":"SUM('10-JEDNOSTKI BUDZETOWE:40-FUNDUSZE CELOWE'!P28)","v":0},{"$f":"SUM('10-JEDNOSTKI BUDZETOWE:40-FUNDUSZE CELOWE'!Q28)","v":0},{"$f":"SUM('10-JEDNOSTKI BUDZETOWE:40-FUNDUSZE CELOWE'!R28)","v":0}]
["E2. kredyty i pożyczki (E2.1+E2.2)",null,{"$f":"SUM('10-JEDNOSTKI BUDZETOWE:40-FUNDUSZE CELOWE'!C29)","v":0},{"$f":"SUM('10-JEDNOSTKI BUDZETOWE:40-FUNDUSZE CELOWE'!D29)","v":0},{"$f":"SUM('10-JEDNOSTKI BUDZETOWE:40-FUNDUSZE CELOWE'!E29)","v":0},{"$f":"SUM('10-JEDNOSTKI BUDZETOWE:40-FUNDUSZE CELOWE'!F29)","v":0},{"$f":"SUM('10-JEDNOSTKI BUDZETOWE:40-FUNDUSZE CELOWE'!G29)","v":0},{"$f":"SUM('10-JEDNOSTKI BUDZETOWE:40-FUNDUSZE CELOWE'!H29)","v":0},{"$f":"SUM('10-JEDNOSTKI BUDZETOWE:40-FUNDUSZE CELOWE'!I29)","v":0},{"$f":"SUM('10-JEDNOSTKI BUDZETOWE:40-FUNDUSZE CELOWE'!J29)","v":0},{"$f":"SUM('10-JEDNOSTKI BUDZETOWE:40-FUNDUSZE CELOWE'!K29)","v":0},{"$f":"SUM('10-JEDNOSTKI BUDZETOWE:40-FUNDUSZE CELOWE'!L29)","v":0},{"$f":"SUM('10-JEDNOSTKI BUDZETOWE:40-FUNDUSZE CELOWE'!M29)","v":0},{"$f":"SUM('10-JEDNOSTKI BUDZETOWE:40-FUNDUSZE CELOWE'!N29)","v":0},{"$f":"SUM('10-JEDNOSTKI BUDZETOWE:40-FUNDUSZE CELOWE'!O29)","v":0},{"$f":"SUM('10-JEDNOSTKI BUDZETOWE:40-FUNDUSZE CELOWE'!P29)","v":0},{"$f":"SUM('10-JEDNOSTKI BUDZETOWE:40-FUNDUSZE CELOWE'!Q29)","v":0},{"$f":"SUM('10-JEDNOSTKI BUDZETOWE:40-FUNDUSZE CELOWE'!R29)","v":0}]
["      E2.1. krótkoterminowe",null,{"$f":"SUM('10-JEDNOSTKI BUDZETOWE:40-FUNDUSZE CELOWE'!C30)","v":0},{"$f":"SUM('10-JEDNOSTKI BUDZETOWE:40-FUNDUSZE CELOWE'!D30)","v":0},{"$f":"SUM('10-JEDNOSTKI BUDZETOWE:40-FUNDUSZE CELOWE'!E30)","v":0},{"$f":"SUM('10-JEDNOSTKI BUDZETOWE:40-FUNDUSZE CELOWE'!F30)","v":0},{"$f":"SUM('10-JEDNOSTKI BUDZETOWE:40-FUNDUSZE CELOWE'!G30)","v":0},{"$f":"SUM('10-JEDNOSTKI BUDZETOWE:40-FUNDUSZE CELOWE'!H30)","v":0},{"$f":"SUM('10-JEDNOSTKI BUDZETOWE:40-FUNDUSZE CELOWE'!I30)","v":0},{"$f":"SUM('10-JEDNOSTKI BUDZETOWE:40-FUNDUSZE CELOWE'!J30)","v":0},{"$f":"SUM('10-JEDNOSTKI BUDZETOWE:40-FUNDUSZE CELOWE'!K30)","v":0},{"$f":"SUM('10-JEDNOSTKI BUDZETOWE:40-FUNDUSZE CELOWE'!L30)","v":0},{"$f":"SUM('10-JEDNOSTKI BUDZETOWE:40-FUNDUSZE CELOWE'!M30)","v":0},{"$f":"SUM('10-JEDNOSTKI BUDZETOWE:40-FUNDUSZE CELOWE'!N30)","v":0},{"$f":"SUM('10-JEDNOSTKI BUDZETOWE:40-FUNDUSZE CELOWE'!O30)","v":0},{"$f":"SUM('10-JEDNOSTKI BUDZETOWE:40-FUNDUSZE CELOWE'!P30)","v":0},{"$f":"SUM('10-JEDNOSTKI BUDZETOWE:40-FUNDUSZE CELOWE'!Q30)","v":0},{"$f":"SUM('10-JEDNOSTKI BUDZETOWE:40-FUNDUSZE CELOWE'!R30)","v":0}]
["      E2.2. długoterminowe",null,{"$f":"SUM('10-JEDNOSTKI BUDZETOWE:40-FUNDUSZE CELOWE'!C31)","v":0},{"$f":"SUM('10-JEDNOSTKI BUDZETOWE:40-FUNDUSZE CELOWE'!D31)","v":0},{"$f":"SUM('10-JEDNOSTKI BUDZETOWE:40-FUNDUSZE CELOWE'!E31)","v":0},{"$f":"SUM('10-JEDNOSTKI BUDZETOWE:40-FUNDUSZE CELOWE'!F31)","v":0},{"$f":"SUM('10-JEDNOSTKI BUDZETOWE:40-FUNDUSZE CELOWE'!G31)","v":0},{"$f":"SUM('10-JEDNOSTKI BUDZETOWE:40-FUNDUSZE CELOWE'!H31)","v":0},{"$f":"SUM('10-JEDNOSTKI BUDZETOWE:40-FUNDUSZE CELOWE'!I31)","v":0},{"$f":"SUM('10-JEDNOSTKI BUDZETOWE:40-FUNDUSZE CELOWE'!J31)","v":0},{"$f":"SUM('10-JEDNOSTKI BUDZETOWE:40-FUNDUSZE CELOWE'!K31)","v":0},{"$f":"SUM('10-JEDNOSTKI BUDZETOWE:40-FUNDUSZE CELOWE'!L31)","v":0},{"$f":"SUM('10-JEDNOSTKI BUDZETOWE:40-FUNDUSZE CELOWE'!M31)","v":0},{"$f":"SUM('10-JEDNOSTKI BUDZETOWE:40-FUNDUSZE CELOWE'!N31)","v":0},{"$f":"SUM('10-JEDNOSTKI BUDZETOWE:40-FUNDUSZE CELOWE'!O31)","v":0},{"$f":"SUM('10-JEDNOSTKI BUDZETOWE:40-FUNDUSZE CELOWE'!P31)","v":0},{"$f":"SUM('10-JEDNOSTKI BUDZETOWE:40-FUNDUSZE CELOWE'!Q31)","v":0},{"$f":"SUM('10-JEDNOSTKI BUDZETOWE:40-FUNDUSZE CELOWE'!R31)","v":0}]
["E3. przyjęte depozyty",null,{"$f":"SUM('10-JEDNOSTKI BUDZETOWE:40-FUNDUSZE CELOWE'!C32)","v":0},{"$f":"SUM('10-JEDNOSTKI BUDZETOWE:40-FUNDUSZE CELOWE'!D32)","v":0},{"$f":"SUM('10-JEDNOSTKI BUDZETOWE:40-FUNDUSZE CELOWE'!E32)","v":0},{"$f":"SUM('10-JEDNOSTKI BUDZETOWE:40-FUNDUSZE CELOWE'!F32)","v":0},{"$f":"SUM('10-JEDNOSTKI BUDZETOWE:40-FUNDUSZE CELOWE'!G32)","v":0},{"$f":"SUM('10-JEDNOSTKI BUDZETOWE:40-FUNDUSZE CELOWE'!H32)","v":0},{"$f":"SUM('10-JEDNOSTKI BUDZETOWE:40-FUNDUSZE CELOWE'!I32)","v":0},{"$f":"SUM('10-JEDNOSTKI BUDZETOWE:40-FUNDUSZE CELOWE'!J32)","v":0},{"$f":"SUM('10-JEDNOSTKI BUDZETOWE:40-FUNDUSZE CELOWE'!K32)","v":0},{"$f":"SUM('10-JEDNOSTKI BUDZETOWE:40-FUNDUSZE CELOWE'!L32)","v":0},{"$f":"SUM('10-JEDNOSTKI BUDZETOWE:40-FUNDUSZE CELOWE'!M32)","v":0},{"$f":"SUM('10-JEDNOSTKI BUDZETOWE:40-FUNDUSZE CELOWE'!N32)","v":0},{"$f":"SUM('10-JEDNOSTKI BUDZETOWE:40-FUNDUSZE CELOWE'!O32)","v":0},{"$f":"SUM('10-JEDNOSTKI BUDZETOWE:40-FUNDUSZE CELOWE'!P32)","v":0},{"$f":"SUM('10-JEDNOSTKI BUDZETOWE:40-FUNDUSZE CELOWE'!Q32)","v":0},{"$f":"SUM('10-JEDNOSTKI BUDZETOWE:40-FUNDUSZE CELOWE'!R32)","v":0}]
["E4. wymagalne zobowiązania (E4.1+E4.2)",null,{"$f":"SUM('10-JEDNOSTKI BUDZETOWE:40-FUNDUSZE CELOWE'!C33)","v":0},{"$f":"SUM('10-JEDNOSTKI BUDZETOWE:40-FUNDUSZE CELOWE'!D33)","v":0},{"$f":"SUM('10-JEDNOSTKI BUDZETOWE:40-FUNDUSZE CELOWE'!E33)","v":0},{"$f":"SUM('10-JEDNOSTKI BUDZETOWE:40-FUNDUSZE CELOWE'!F33)","v":0},{"$f":"SUM('10-JEDNOSTKI BUDZETOWE:40-FUNDUSZE CELOWE'!G33)","v":0},{"$f":"SUM('10-JEDNOSTKI BUDZETOWE:40-FUNDUSZE CELOWE'!H33)","v":0},{"$f":"SUM('10-JEDNOSTKI BUDZETOWE:40-FUNDUSZE CELOWE'!I33)","v":0},{"$f":"SUM('10-JEDNOSTKI BUDZETOWE:40-FUNDUSZE CELOWE'!J33)","v":0},{"$f":"SUM('10-JEDNOSTKI BUDZETOWE:40-FUNDUSZE CELOWE'!K33)","v":0},{"$f":"SUM('10-JEDNOSTKI BUDZETOWE:40-FUNDUSZE CELOWE'!L33)","v":0},{"$f":"SUM('10-JEDNOSTKI BUDZETOWE:40-FUNDUSZE CELOWE'!M33)","v":0},{"$f":"SUM('10-JEDNOSTKI BUDZETOWE:40-FUNDUSZE CELOWE'!N33)","v":0},{"$f":"SUM('10-JEDNOSTKI BUDZETOWE:40-FUNDUSZE CELOWE'!O33)","v":0},{"$f":"SUM('10-JEDNOSTKI BUDZETOWE:40-FUNDUSZE CELOWE'!P33)","v":0},{"$f":"SUM('10-JEDNOSTKI BUDZETOWE:40-FUNDUSZE CELOWE'!Q33)","v":0},{"$f":"SUM('10-JEDNOSTKI BUDZETOWE:40-FUNDUSZE CELOWE'!R33)","v":0}]
["      E4.1. z tyt. dostaw towarów i usług",null,{"$f":"SUM('10-JEDNOSTKI BUDZETOWE:40-FUNDUSZE CELOWE'!C34)","v":0},{"$f":"SUM('10-JEDNOSTKI BUDZETOWE:40-FUNDUSZE CELOWE'!D34)","v":0},{"$f":"SUM('10-JEDNOSTKI BUDZETOWE:40-FUNDUSZE CELOWE'!E34)","v":0},{"$f":"SUM('10-JEDNOSTKI BUDZETOWE:40-FUNDUSZE CELOWE'!F34)","v":0},{"$f":"SUM('10-JEDNOSTKI BUDZETOWE:40-FUNDUSZE CELOWE'!G34)","v":0},{"$f":"SUM('10-JEDNOSTKI BUDZETOWE:40-FUNDUSZE CELOWE'!H34)","v":0},{"$f":"SUM('10-JEDNOSTKI BUDZETOWE:40-FUNDUSZE CELOWE'!I34)","v":0},{"$f":"SUM('10-JEDNOSTKI BUDZETOWE:40-FUNDUSZE CELOWE'!J34)","v":0},{"$f":"SUM('10-JEDNOSTKI BUDZETOWE:40-FUNDUSZE CELOWE'!K34)","v":0},{"$f":"SUM('10-JEDNOSTKI BUDZETOWE:40-FUNDUSZE CELOWE'!L34)","v":0},{"$f":"SUM('10-JEDNOSTKI BUDZETOWE:40-FUNDUSZE CELOWE'!M34)","v":0},{"$f":"SUM('10-JEDNOSTKI BUDZETOWE:40-FUNDUSZE CELOWE'!N34)","v":0},{"$f":"SUM('10-JEDNOSTKI BUDZETOWE:40-FUNDUSZE CELOWE'!O34)","v":0},{"$f":"SUM('10-JEDNOSTKI BUDZETOWE:40-FUNDUSZE CELOWE'!P34)","v":0},{"$f":"SUM('10-JEDNOSTKI BUDZETOWE:40-FUNDUSZE CELOWE'!Q34)","v":0},{"$f":"SUM('10-JEDNOSTKI BUDZETOWE:40-FUNDUSZE CELOWE'!R34)","v":0}]
["      E4.2. pozostałe",null,{"$f":"SUM('10-JEDNOSTKI BUDZETOWE:40-FUNDUSZE CELOWE'!C35)","v":0},{"$f":"SUM('10-JEDNOSTKI BUDZETOWE:40-FUNDUSZE CELOWE'!D35)","v":0},{"$f":"SUM('10-JEDNOSTKI BUDZETOWE:40-FUNDUSZE CELOWE'!E35)","v":0},{"$f":"SUM('10-JEDNOSTKI BUDZETOWE:40-FUNDUSZE CELOWE'!F35)","v":0},{"$f":"SUM('10-JEDNOSTKI BUDZETOWE:40-FUNDUSZE CELOWE'!G35)","v":0},{"$f":"SUM('10-JEDNOSTKI BUDZETOWE:40-FUNDUSZE CELOWE'!H35)","v":0},{"$f":"SUM('10-JEDNOSTKI BUDZETOWE:40-FUNDUSZE CELOWE'!I35)","v":0},{"$f":"SUM('10-JEDNOSTKI BUDZETOWE:40-FUNDUSZE CELOWE'!J35)","v":0},{"$f":"SUM('10-JEDNOSTKI BUDZETOWE:40-FUNDUSZE CELOWE'!K35)","v":0},{"$f":"SUM('10-JEDNOSTKI BUDZETOWE:40-FUNDUSZE CELOWE'!L35)","v":0},{"$f":"SUM('10-JEDNOSTKI BUDZETOWE:40-FUNDUSZE CELOWE'!M35)","v":0},{"$f":"SUM('10-JEDNOSTKI BUDZETOWE:40-FUNDUSZE CELOWE'!N35)","v":0},{"$f":"SUM('10-JEDNOSTKI BUDZETOWE:40-FUNDUSZE CELOWE'!O35)","v":0},{"$f":"SUM('10-JEDNOSTKI BUDZETOWE:40-FUNDUSZE CELOWE'!P35)","v":0},{"$f":"SUM('10-JEDNOSTKI BUDZETOWE:40-FUNDUSZE CELOWE'!Q35)","v":0},{"$f":"SUM('10-JEDNOSTKI BUDZETOWE:40-FUNDUSZE CELOWE'!R35)","v":0}]
[]
[" B. Poręczenia i gwarancje"]
[]
[null,null,null,null,null,null,"w i e r z y c i e l e "]
[null,null,null,null,null,"Kwota ","podmioty"]
["Wyszczególnienie",null,null,null,null,"zobowiązań","sektora","grupa  I","grupa II","grupa III","grupa IV","pozostałe "]
[null,null,null,null,null,"ogółem","finansów",null,null,null,null,"podmioty"]
[null,null,null,null,null,"(kol. 3+8)","publicznych"]
[null,null,null,null,null,null,"(kol.4+5+6+7)"]
[1,null,null,null,null,2,3,4,5,6,7,8]
["F1. wartość nominalna niewymagalnych (potencjalnych) zobowiązań z tytułu udzielonych poręczeń i gwarancji na koniec okresu sprawozdawczego",null,null,null,null,{"$f":"SUM('10-JEDNOSTKI BUDZETOWE:40-FUNDUSZE CELOWE'!F46)","v":0},{"$f":"SUM('10-JEDNOSTKI BUDZETOWE:40-FUNDUSZE CELOWE'!G46)","v":0},{"$f":"SUM('10-JEDNOSTKI BUDZETOWE:40-FUNDUSZE CELOWE'!H46)","v":0},{"$f":"SUM('10-JEDNOSTKI BUDZETOWE:40-FUNDUSZE CELOWE'!I46)","v":0},{"$f":"SUM('10-JEDNOSTKI BUDZETOWE:40-FUNDUSZE CELOWE'!J46)","v":0},{"$f":"SUM('10-JEDNOSTKI BUDZETOWE:40-FUNDUSZE CELOWE'!K46)","v":0},{"$f":"SUM('10-JEDNOSTKI BUDZETOWE:40-FUNDUSZE CELOWE'!L46)","v":0}]
["F2. wartość nominalna wymagalnych zobowiązań z tytułu udzielonych poręczeń i gwarancji na koniec okresu sprawozdawczego",null,null,null,null,{"$f":"SUM('10-JEDNOSTKI BUDZETOWE:40-FUNDUSZE CELOWE'!F47)","v":0},{"$f":"SUM('10-JEDNOSTKI BUDZETOWE:40-FUNDUSZE CELOWE'!G47)","v":0},{"$f":"SUM('10-JEDNOSTKI BUDZETOWE:40-FUNDUSZE CELOWE'!H47)","v":0},{"$f":"SUM('10-JEDNOSTKI BUDZETOWE:40-FUNDUSZE CELOWE'!I47)","v":0},{"$f":"SUM('10-JEDNOSTKI BUDZETOWE:40-FUNDUSZE CELOWE'!J47)","v":0},{"$f":"SUM('10-JEDNOSTKI BUDZETOWE:40-FUNDUSZE CELOWE'!K47)","v":0},{"$f":"SUM('10-JEDNOSTKI BUDZETOWE:40-FUNDUSZE CELOWE'!L47)","v":0}]
["F3. wartość poręczeń i gwarancji udzielonych w okresie sprawozdawczym",null,null,null,null,{"$f":"SUM('10-JEDNOSTKI BUDZETOWE:40-FUNDUSZE CELOWE'!F48)","v":0},{"$f":"SUM('10-JEDNOSTKI BUDZETOWE:40-FUNDUSZE CELOWE'!G48)","v":0},{"$f":"SUM('10-JEDNOSTKI BUDZETOWE:40-FUNDUSZE CELOWE'!H48)","v":0},{"$f":"SUM('10-JEDNOSTKI BUDZETOWE:40-FUNDUSZE CELOWE'!I48)","v":0},{"$f":"SUM('10-JEDNOSTKI BUDZETOWE:40-FUNDUSZE CELOWE'!J48)","v":0},{"$f":"SUM('10-JEDNOSTKI BUDZETOWE:40-FUNDUSZE CELOWE'!K48)","v":0},{"$f":"SUM('10-JEDNOSTKI BUDZETOWE:40-FUNDUSZE CELOWE'!L48)","v":0}]
[]
["C. Uzupełniające dane o niektórych zobowiązaniach jednostki samorządu terytorialnego"]
[]
["C1. Kredyty i pożyczki oraz wyemitowane papiery wartościowe na realizację programów, projektów lub zadań finansowanych z udziałem środków, o których mowa w art. 5 ust. 1 pkt 2 ustawy"]
["Lp.","Wyszczególnienie",null,null,null,"Z budżetu państwa\n ogółem ","w tym","Z innych źródeł\n ogółem","w tym"]
[null,null,null,null,null,null," długoterminowe",null,"długoterminowe"]
[1,2,null,null,null,3,4,5,6]
[1,"Ogółem kredyty i pożyczki oraz wyemitowane papiery wartościowe\nw tym:",null,null,null,{"$f":"SUM('10-JEDNOSTKI BUDZETOWE:40-FUNDUSZE CELOWE'!F56)","v":0},{"$f":"SUM('10-JEDNOSTKI BUDZETOWE:40-FUNDUSZE CELOWE'!G56)","v":0},{"$f":"SUM('10-JEDNOSTKI BUDZETOWE:40-FUNDUSZE CELOWE'!H56)","v":0},{"$f":"SUM('10-JEDNOSTKI BUDZETOWE:40-FUNDUSZE CELOWE'!I56)","v":0}]
[2," na współfinansowanie\n       (udział własny)",null,null,null,"X","X",{"$f":"SUM('10-JEDNOSTKI BUDZETOWE:40-FUNDUSZE CELOWE'!H57)","v":0},{"$f":"SUM('10-JEDNOSTKI BUDZETOWE:40-FUNDUSZE CELOWE'!I57)","v":0}]
[]
["C2. Dodatkowe dane uzupełniające"]
["Wyszczególnienie ",null,null,"Plan","Wykonanie"]
[1,null,null,2,3]
["Zobowiązania związku współtworzonego przez jednostkę samorządu terytorialnego w okresie sprawozdawczym",null,null,{"$f":"SUM('10-JEDNOSTKI BUDZETOWE:40-FUNDUSZE CELOWE'!D62)","v":0},{"$f":"SUM('10-JEDNOSTKI BUDZETOWE:40-FUNDUSZE CELOWE'!E62)","v":0}]
[]
["C3. Zobowiązania zaliczane do tytułu dłużnego - kredyty i pożyczki "]
["Rodzaje zobowiązań zaliczanych do kredytów i pożyczek (E2. - część A)",null,null,"ogółem (kol. 3+4+6+7+8)","wierzyciele krajowi",null,null,null,null,"wierzyciele zagraniczni "]
[null,null,null,null,"banki","pozostałe krajowe instytucje finansowe   ogółem","w  tym","przedsiębiorstwa niefinansowe","pozostali wierzyciele"]
[null,null,null,null,null,null,"instytucje parabankowe"]
[1,null,null,2,3,4,5,6,7,8]
["1. umowy kredytu i pożyczki",null,null,{"$f":"SUM('10-JEDNOSTKI BUDZETOWE:40-FUNDUSZE CELOWE'!D69)","v":0},{"$f":"SUM('10-JEDNOSTKI BUDZETOWE:40-FUNDUSZE CELOWE'!E69)","v":0},{"$f":"SUM('10-JEDNOSTKI BUDZETOWE:40-FUNDUSZE CELOWE'!F69)","v":0},{"$f":"SUM('10-JEDNOSTKI BUDZETOWE:40-FUNDUSZE CELOWE'!G69)","v":0},{"$f":"SUM('10-JEDNOSTKI BUDZETOWE:40-FUNDUSZE CELOWE'!H69)","v":0},{"$f":"SUM('10-JEDNOSTKI BUDZETOWE:40-FUNDUSZE CELOWE'!I69)","v":0},{"$f":"SUM('10-JEDNOSTKI BUDZETOWE:40-FUNDUSZE CELOWE'!J69)","v":0}]
["2. umowy partnerstwa publiczno-prywatnego",null,null,{"$f":"SUM('10-JEDNOSTKI BUDZETOWE:40-FUNDUSZE CELOWE'!D70)","v":0},{"$f":"SUM('10-JEDNOSTKI BUDZETOWE:40-FUNDUSZE CELOWE'!E70)","v":0},{"$f":"SUM('10-JEDNOSTKI BUDZETOWE:40-FUNDUSZE CELOWE'!F70)","v":0},{"$f":"SUM('10-JEDNOSTKI BUDZETOWE:40-FUNDUSZE CELOWE'!G70)","v":0},{"$f":"SUM('10-JEDNOSTKI BUDZETOWE:40-FUNDUSZE CELOWE'!H70)","v":0},{"$f":"SUM('10-JEDNOSTKI BUDZETOWE:40-FUNDUSZE CELOWE'!I70)","v":0},{"$f":"SUM('10-JEDNOSTKI BUDZETOWE:40-FUNDUSZE CELOWE'!J70)","v":0}]
["3. papiery wartościowe, których zbywalność jest ograniczona ",null,null,{"$f":"SUM('10-JEDNOSTKI BUDZETOWE:40-FUNDUSZE CELOWE'!D71)","v":0},{"$f":"SUM('10-JEDNOSTKI BUDZETOWE:40-FUNDUSZE CELOWE'!E71)","v":0},{"$f":"SUM('10-JEDNOSTKI BUDZETOWE:40-FUNDUSZE CELOWE'!F71)","v":0},{"$f":"SUM('10-JEDNOSTKI BUDZETOWE:40-FUNDUSZE CELOWE'!G71)","v":0},{"$f":"SUM('10-JEDNOSTKI BUDZETOWE:40-FUNDUSZE CELOWE'!H71)","v":0},{"$f":"SUM('10-JEDNOSTKI BUDZETOWE:40-FUNDUSZE CELOWE'!I71)","v":0},{"$f":"SUM('10-JEDNOSTKI BUDZETOWE:40-FUNDUSZE CELOWE'!J71)","v":0}]
["4. sprzedaż na raty",null,null,{"$f":"SUM('10-JEDNOSTKI BUDZETOWE:40-FUNDUSZE CELOWE'!D72)","v":0},{"$f":"SUM('10-JEDNOSTKI BUDZETOWE:40-FUNDUSZE CELOWE'!E72)","v":0},{"$f":"SUM('10-JEDNOSTKI BUDZETOWE:40-FUNDUSZE CELOWE'!F72)","v":0},{"$f":"SUM('10-JEDNOSTKI BUDZETOWE:40-FUNDUSZE CELOWE'!G72)","v":0},{"$f":"SUM('10-JEDNOSTKI BUDZETOWE:40-FUNDUSZE CELOWE'!H72)","v":0},{"$f":"SUM('10-JEDNOSTKI BUDZETOWE:40-FUNDUSZE CELOWE'!I72)","v":0},{"$f":"SUM('10-JEDNOSTKI BUDZETOWE:40-FUNDUSZE CELOWE'!J72)","v":0}]
["5. leasing finansowy",null,null,{"$f":"SUM('10-JEDNOSTKI BUDZETOWE:40-FUNDUSZE CELOWE'!D73)","v":0},{"$f":"SUM('10-JEDNOSTKI BUDZETOWE:40-FUNDUSZE CELOWE'!E73)","v":0},{"$f":"SUM('10-JEDNOSTKI BUDZETOWE:40-FUNDUSZE CELOWE'!F73)","v":0},{"$f":"SUM('10-JEDNOSTKI BUDZETOWE:40-FUNDUSZE CELOWE'!G73)","v":0},{"$f":"SUM('10-JEDNOSTKI BUDZETOWE:40-FUNDUSZE CELOWE'!H73)","v":0},{"$f":"SUM('10-JEDNOSTKI BUDZETOWE:40-FUNDUSZE CELOWE'!I73)","v":0},{"$f":"SUM('10-JEDNOSTKI BUDZETOWE:40-FUNDUSZE CELOWE'!J73)","v":0}]
["6. umowy nienazwane o charakterze kredytu lub pożyczki ",null,null,{"$f":"SUM('10-JEDNOSTKI BUDZETOWE:40-FUNDUSZE CELOWE'!D74)","v":0},{"$f":"SUM('10-JEDNOSTKI BUDZETOWE:40-FUNDUSZE CELOWE'!E74)","v":0},{"$f":"SUM('10-JEDNOSTKI BUDZETOWE:40-FUNDUSZE CELOWE'!F74)","v":0},{"$f":"SUM('10-JEDNOSTKI BUDZETOWE:40-FUNDUSZE CELOWE'!G74)","v":0},{"$f":"SUM('10-JEDNOSTKI BUDZETOWE:40-FUNDUSZE CELOWE'!H74)","v":0},{"$f":"SUM('10-JEDNOSTKI BUDZETOWE:40-FUNDUSZE CELOWE'!I74)","v":0},{"$f":"SUM('10-JEDNOSTKI BUDZETOWE:40-FUNDUSZE CELOWE'!J74)","v":0}]
["Ogółem ",null,null,{"$f":"SUM('10-JEDNOSTKI BUDZETOWE:40-FUNDUSZE CELOWE'!D75)","v":0},{"$f":"SUM('10-JEDNOSTKI BUDZETOWE:40-FUNDUSZE CELOWE'!E75)","v":0},{"$f":"SUM('10-JEDNOSTKI BUDZETOWE:40-FUNDUSZE CELOWE'!F75)","v":0},{"$f":"SUM('10-JEDNOSTKI BUDZETOWE:40-FUNDUSZE CELOWE'!G75)","v":0},{"$f":"SUM('10-JEDNOSTKI BUDZETOWE:40-FUNDUSZE CELOWE'!H75)","v":0},{"$f":"SUM('10-JEDNOSTKI BUDZETOWE:40-FUNDUSZE CELOWE'!I75)","v":0},{"$f":"SUM('10-JEDNOSTKI BUDZETOWE:40-FUNDUSZE CELOWE'!J75)","v":0}]
[]
["D. Dane o krótkoterminowych zobowiązaniach wynikających z umów nienazwanych związanych z finansowaniem usług, dostaw, robót budowlanych"]
[]
["Wyszczególnienie",null,"Kwota zobowiązań ogółem"]
[1,null,2]
["A. krótkoterminowe zobowiązania przejęte przez instytucje finansowe",null,{"$f":"SUM('10-JEDNOSTKI BUDZETOWE:40-FUNDUSZE CELOWE'!C81)","v":0}]
["B. krótkoterminowe zobowiązania zrestrukturyzowane",null,{"$f":"SUM('10-JEDNOSTKI BUDZETOWE:40-FUNDUSZE CELOWE'!C82)","v":0}]
[]
["E. Zobowiązania z tytułu odsetek jednostek posiadających osobowość prawną z wyłączeniem jednostek samorządu terytorialnego"]
[]
["Wyszczególnienie",null,"kwota zobowiązań ogółem\n(kol. 3+4)","odsetki naliczone od zobowiązań niewymagalnych","odsetki naliczone od zobowiązań wymagalnych"]
[1,null,2,3,4]
["Wartość odsetek ",null,{"$f":"SUM('10-JEDNOSTKI BUDZETOWE:40-FUNDUSZE CELOWE'!C88)","v":0},{"$f":"SUM('10-JEDNOSTKI BUDZETOWE:40-FUNDUSZE CELOWE'!D88)","v":0},{"$f":"SUM('10-JEDNOSTKI BUDZETOWE:40-FUNDUSZE CELOWE'!E88)","v":0}]
[]
["F. Lista jednostek sporządzajacych sprawozdania"]
[]
["Lp.","REGON"]
[1]
[]
[]
[]
[null,null,null,null,null,null,null,null,null,null,null,null," "]
[]
["……………………",null,null,"……………",null,"………………",null,null,"…………………"]
["Główny Księgowy* / Skarbnik",null,null,"telefon",null,"rok m-c dzień",null,null,"Kierownik jednostki (jednostki obsługującej)/ Przewodniczący Zarządu"]
[]
["* Nie dotyczy sprawozdań zbiorczych sporządzanych przez RIO. W przypadku braku głównego księgowego podpisuje tylko kierownik jednostki."]
[]
[]
[]
[null,null,null,null,null,null,null,null,null,null,null,null," "]

{"sheet":"LISTA","index":3,"n_rows":118,"n_cols":4,"rows_kept":118,"cut":false,"hidden":true,"merged":[]}
["KODKATEGORII","NRWKATEGORII","NAZWA","REGON"]
[null,null,"Agencja Bezpieczeństwa Wewnętrznego","015179728"]
[null,null,"Agencja Wywiadu","015179898"]
[null,null,"Biuro Krajowej Rady Radiofonii i Telewizji","010182401"]
[null,null,"Biuro Rzecznika Praw Dziecka","016387630"]
[null,null,"Biuro Rzecznika Praw Obywatelskich","012093073"]
[500,1,"Biuro Rzecznika Praw Pacjenta","017445217"]
[500,3,"Centralne Biuro Antykorupcyjne","140610454"]
[500,4,"Dolnośląski Urząd Wojewódzki","000514377"]
[500,6,"Główny Urząd Miar","010415420"]
[500,8,"Główny Urząd Statystyczny","000331501"]
[500,10,"Instytut Pamięci Narodowej","016365090"]
[500,11,"Kancelaria Prezesa Rady Ministrów","012261725"]
[500,5,"Kancelaria Prezydenta RP","000000023"]
[300,1,"Kancelaria Sejmu","001103340"]
[null,null,"Kancelaria Senatu","001393800"]
[100,null,"Krajowa Rada Sądownictwa","140813648"]
[600,1,"Krajowe Biuro Wyborcze","010300303"]
[300,2,"Kujawsko-Pomorski Urząd Wojewódzki","000514236"]
[300,3,"Lubelski Urząd Wojewódzki","000514294"]
[300,4,"Lubuski Urząd Wojewódzki","210467089"]
[300,5,"Łódzki Urząd Wojewódzki","004308002"]
[300,6,"Małopolski Urząd Wojewódzki","000514176"]
[300,7,"Mazowiecki Urząd Wojewódzki","013272620"]
[200,2,"Ministerstwo Aktywów Państwowych","363209612"]
[200,null,"Ministerstwo Edukacji i Nauki","000177939"]
[200,4,"Ministerstwo Finansów","000002217"]
[null,null,"Ministerstwo Funduszy i Polityki Regionalnej","140315583"]
[200,5,"Ministerstwo Infrastruktury","363190367"]
[200,6,"Ministerstwo Klimatu i Środowiska","001064858"]
[200,7,"Ministerstwo Kultury i Dziedzictwa Narodowego","000274068"]
[200,9,"Ministerstwo Obrony Narodowej","000665337"]
[200,10,"Ministerstwo Rodziny i Polityki Społecznej","015725935"]
[200,11,"Ministerstwo Rolnictwa i Rozwoju Wsi","000063880"]
[200,12,"Ministerstwo Rozwoju, Pracy i Technologii","369267361"]
[200,13,"Ministerstwo Sportu","140217142"]
[200,14,"Ministerstwo Spraw Wewnętrznych i Administracji","012293240"]
[200,15,"Ministerstwo Spraw Zagranicznych","000177916"]
[200,16,"Ministerstwo Sprawiedliwości","000319150"]
[200,17,"Ministerstwo Zdrowia","000287987"]
[300,8,"Naczelny Sąd Administracyjny","000849310"]
[300,9,"Najwyższa Izba Kontroli","000000052"]
[null,null,"Opolski Urząd Wojewódzki","000514325"]
[null,null,"Państwowa Agencja Atomistyki","000907473"]
[null,null,"Państwowa Inspekcja Pracy","007021519"]
[null,null,"Podkarpacki Urząd Wojewódzki w Rzeszowie","000514348"]
[null,null,"Podlaski Urząd Wojewódzki","000514213"]
[null,null,"Polski Komitet Normalizacyjny","010415408"]
[null,null,"Pomorski Urząd Wojewódzki","000514242"]
[null,null,"Prokuratoria Generalna Rzeczypospolitej Polskiej","140264957"]
[null,null,"Prokuratura Krajowa","363918998"]
[null,null,"Rządowe Centrum Legislacji","016179067"]
[null,null,"Samorządowe Kolegium Odwoławcze Biała Podlaska","030120850"]
[null,null,"Samorządowe Kolegium Odwoławcze Białystok","050322561"]
[null,null,"Samorządowe Kolegium Odwoławcze Bielsko-Biała","070477503"]
[null,null,"Samorządowe Kolegium Odwoławcze Bydgoszcz","091149553"]
[null,null,"Samorządowe Kolegium Odwoławcze Chełm","110105320"]
[null,null,"Samorządowe Kolegium Odwoławcze Ciechanów","130197157"]
[null,null,"Samorządowe Kolegium Odwoławcze Częstochowa","150060075"]
[null,null,"Samorządowe Kolegium Odwoławcze Elbląg","170237517"]
[null,null,"Samorządowe Kolegium Odwoławcze Gdańsk","190482336"]
[null,null,"Samorządowe Kolegium Odwoławcze Gorzów Wielkopolski","210241304"]
[null,null,"Samorządowe Kolegium Odwoławcze Jelenia Góra","230224997"]
[null,null,"Samorządowe Kolegium Odwoławcze Kalisz","250471562"]
[null,null,"Samorządowe Kolegium Odwoławcze Katowice","272357234"]
[null,null,"Samorządowe Kolegium Odwoławcze Kielce","290540390"]
[null,null,"Samorządowe Kolegium Odwoławcze Konin","310187843"]
[null,null,"Samorządowe Kolegium Odwoławcze Koszalin","330322679"]
[null,null,"Samorządowe Kolegium Odwoławcze Kraków","350760168"]
[null,null,"Samorządowe Kolegium Odwoławcze Krosno","370233499"]
[null,null,"Samorządowe Kolegium Odwoławcze Legnica","390324772"]
[null,null,"Samorządowe Kolegium Odwoławcze Leszno","410226592"]
[null,null,"Samorządowe Kolegium Odwoławcze Lublin","430463253"]
[null,null,"Samorządowe Kolegium Odwoławcze Łomża","450100747"]
[null,null,"Samorządowe Kolegium Odwoławcze Łódź","470930730"]
[null,null,"Samorządowe Kolegium Odwoławcze Nowy Sącz","490510595"]
[null,null,"Samorządowe Kolegium Odwoławcze Olsztyn","510284847"]
[null,null,"Samorządowe Kolegium Odwoławcze Opole","530968352"]
[null,null,"Samorządowe Kolegium Odwoławcze Ostrołęka","550400044"]
[null,null,"Samorządowe Kolegium Odwoławcze Piła","570174862"]
[null,null,"Samorządowe Kolegium Odwoławcze Piotrków Trybunalski","590343540"]
[null,null,"Samorządowe Kolegium Odwoławcze Płock","610222286"]
[null,null,"Samorządowe Kolegium Odwoławcze Poznań","630283616"]
[null,null,"Samorządowe Kolegium Odwoławcze Przemyśl","650129510"]
[null,null,"Samorządowe Kolegium Odwoławcze Radom","670750021"]
[null,null,"Samorządowe Kolegium Odwoławcze Rzeszów","690310938"]
[null,null,"Samorządowe Kolegium Odwoławcze Siedlce","710315530"]
[null,null,"Samorządowe Kolegium Odwoławcze Sieradz","730188808"]
[null,null,"Samorządowe Kolegium Odwoławcze Skierniewice","750445394"]
[300,10,"Samorządowe Kolegium Odwoławcze Słupsk","770727125"]
[null,null,"Samorządowe Kolegium Odwoławcze Suwałki","790167544"]
[100,4,"Samorządowe Kolegium Odwoławcze Szczecin","810664240"]
[null,null,"Samorządowe Kolegium Odwoławcze Tarnobrzeg","830210976"]
[500,9,"Samorządowe Kolegium Odwoławcze Tarnów","850329302"]
[300,11,"Samorządowe Kolegium Odwoławcze Toruń","870273968"]
[400,1,"Samorządowe Kolegium Odwoławcze Wałbrzych","890281455"]
[400,2,"Samorządowe Kolegium Odwoławcze Warszawa","010857000"]
[400,3,"Samorządowe Kolegium Odwoławcze Włocławek","910181922"]
[400,4,"Samorządowe Kolegium Odwoławcze Wrocław","930413995"]
[400,5,"Samorządowe Kolegium Odwoławcze Zamość","950192410"]
[400,6,"Samorządowe Kolegium Odwoławcze Zielona Góra","970383889"]
[400,7,"Sąd Najwyższy","000000224"]
[400,8,"Śląski Urząd Wojewódzki w Katowicach","000514259"]
[400,9,"Świętokrzyski Urząd Wojewódzki","000514265"]
[400,10,"Trybunał Konstytucyjny","001276402"]
[400,11,"Urzadu Ochrony Danych Osobowych","013049097"]
[400,12,"Urząd do Spraw Kombatantów i Osób Represjonowanych","012052708"]
[400,13,"Urząd Komunikacji Elektronicznej","017510794"]
[400,14,"Urząd Ochrony Konkurencji i Konsumentów","006212789"]
[400,15,"Urząd Państwowej Komisji Do Spraw Wyjaśniania Przypadków Czynności Skierowanych Przeciwko Wolności Seksualnej i Obyczajności Wobec Małoletniego Poniżej Lat 15","386651770"]
[400,16,"Urząd Patentowy Rzeczypospolitej Polskiej","000332251"]
[300,12,"Urząd Regulacji Energetyki","012726443"]
[300,13,"Urząd Transportu Kolejowego","015481433"]
[500,7,"Urząd Zamówień Publicznych","010828091"]
[500,2,"Warmińsko-Mazurski Urząd Wojewódzki","000514319"]
[300,14,"Wielkopolski Urząd Wojewódzki","000514331"]
[300,15,"Wyższy Urząd Górniczy","000332245"]
[null,null,"Zachodniopomorski Urząd Wojewódzki","000514354"]

{"sheet":"RBZE","index":4,"n_rows":4,"n_cols":187,"rows_kept":4,"cut":false,"hidden":true,"merged":[]}
["REGON","CZ_BU","WK","PK","GK","GT","PT","ROK","KWARTAL","DAT_SKW","UWAGI","E0002","E0003","E0004","E0005","E0006","E0007","E0008","E0009","E0010","E0011","E0012","E0013","E0014","E0015","E0016","E0017","E1002","E1003","E1004","E1005","E1006","E1007","E1008","E1009","E1010","E1011","E1012","E1013","E1014","E1015","E1016","E1017","E1102","E1103","E1104","E1105","E1106","E1107","E1108","E1109","E1110","E1111","E1112","E1113","E1114","E1115","E1116","E1117","E1202","E1203","E1204","E1205","E1206","E1207","E1208","E1209","E1210","E1211","E1212","E1213","E1214","E1215","E1216","E1217","E2002","E2003","E2004","E2005","E2006","E2007","E2008","E2009","E2010","E2011","E2012","E2013","E2014","E2015","E2016","E2017","E2102","E2103","E2104","E2105","E2106","E2107","E2108","E2109","E2110","E2111","E2112","E2113","E2114","E2115","E2116","E2117","E2202","E2203","E2204","E2205","E2206","E2207","E2208","E2209","E2210","E2211","E2212","E2213","E2214","E2215","E2216","E2217","E3002","E3003","E3004","E3005","E3006","E3007","E3008","E3009","E3010","E3011","E3012","E3013","E3014","E3015","E3016","E3017","E4002","E4003","E4004","E4005","E4006","E4007","E4008","E4009","E4010","E4011","E4012","E4013","E4014","E4015","E4016","E4017","E4102","E4103","E4104","E4105","E4106","E4107","E4108","E4109","E4110","E4111","E4112","E4113","E4114","E4115","E4116","E4117","E4202","E4203","E4204","E4205","E4206","E4207","E4208","E4209","E4210","E4211","E4212","E4213","E4214","E4215","E4216","E4217"]
[{"$f":"'10-JEDNOSTKI BUDZETOWE'!A8","v":""},{"$f":"IF(LEN('10-JEDNOSTKI BUDZETOWE'!M11)=1,\"0\"&'10-JEDNOSTKI BUDZETOWE'!M11,'10-JEDNOSTKI BUDZETOWE'!M11)","v":0},null,null,null,null,{"$f":"'10-JEDNOSTKI BUDZETOWE'!L11","v":10},{"$f":"'10-JEDNOSTKI BUDZETOWE'!K8","v":0},{"$f":"'10-JEDNOSTKI BUDZETOWE'!H8","v":0},null,null,{"$f":"'10-JEDNOSTKI BUDZETOWE'!C24","v":0},{"$f":"'10-JEDNOSTKI BUDZETOWE'!D24","v":0},{"$f":"'10-JEDNOSTKI BUDZETOWE'!E24","v":0},{"$f":"'10-JEDNOSTKI BUDZETOWE'!F24","v":0},{"$f":"'10-JEDNOSTKI BUDZETOWE'!G24","v":0},{"$f":"'10-JEDNOSTKI BUDZETOWE'!H24","v":0},{"$f":"'10-JEDNOSTKI BUDZETOWE'!I24","v":0},{"$f":"'10-JEDNOSTKI BUDZETOWE'!J24","v":0},{"$f":"'10-JEDNOSTKI BUDZETOWE'!K24","v":0},{"$f":"'10-JEDNOSTKI BUDZETOWE'!L24","v":0},{"$f":"'10-JEDNOSTKI BUDZETOWE'!M24","v":0},{"$f":"'10-JEDNOSTKI BUDZETOWE'!N24","v":0},{"$f":"'10-JEDNOSTKI BUDZETOWE'!O24","v":0},{"$f":"'10-JEDNOSTKI BUDZETOWE'!P24","v":0},{"$f":"'10-JEDNOSTKI BUDZETOWE'!Q24","v":0},{"$f":"'10-JEDNOSTKI BUDZETOWE'!R24","v":0},{"$f":"'10-JEDNOSTKI BUDZETOWE'!C26","v":0},{"$f":"'10-JEDNOSTKI BUDZETOWE'!D26","v":0},{"$f":"'10-JEDNOSTKI BUDZETOWE'!E26","v":0},{"$f":"'10-JEDNOSTKI BUDZETOWE'!F26","v":0},{"$f":"'10-JEDNOSTKI BUDZETOWE'!G26","v":0},{"$f":"'10-JEDNOSTKI BUDZETOWE'!H26","v":0},{"$f":"'10-JEDNOSTKI BUDZETOWE'!I26","v":0},{"$f":"'10-JEDNOSTKI BUDZETOWE'!J26","v":0},{"$f":"'10-JEDNOSTKI BUDZETOWE'!K26","v":0},{"$f":"'10-JEDNOSTKI BUDZETOWE'!L26","v":0},{"$f":"'10-JEDNOSTKI BUDZETOWE'!M26","v":0},{"$f":"'10-JEDNOSTKI BUDZETOWE'!N26","v":0},{"$f":"'10-JEDNOSTKI BUDZETOWE'!O26","v":0},{"$f":"'10-JEDNOSTKI BUDZETOWE'!P26","v":0},{"$f":"'10-JEDNOSTKI BUDZETOWE'!Q26","v":0},{"$f":"'10-JEDNOSTKI BUDZETOWE'!R26","v":0},{"$f":"'10-JEDNOSTKI BUDZETOWE'!C27","v":0},{"$f":"'10-JEDNOSTKI BUDZETOWE'!D27","v":0},{"$f":"'10-JEDNOSTKI BUDZETOWE'!E27","v":0},{"$f":"'10-JEDNOSTKI BUDZETOWE'!F27","v":0},{"$f":"'10-JEDNOSTKI BUDZETOWE'!G27","v":0},{"$f":"'10-JEDNOSTKI BUDZETOWE'!H27","v":0},{"$f":"'10-JEDNOSTKI BUDZETOWE'!I27","v":0},{"$f":"'10-JEDNOSTKI BUDZETOWE'!J27","v":0},{"$f":"'10-JEDNOSTKI BUDZETOWE'!K27","v":0},{"$f":"'10-JEDNOSTKI BUDZETOWE'!L27","v":0},{"$f":"'10-JEDNOSTKI BUDZETOWE'!M27","v":0},{"$f":"'10-JEDNOSTKI BUDZETOWE'!N27","v":0},{"$f":"'10-JEDNOSTKI BUDZETOWE'!O27","v":0},{"$f":"'10-JEDNOSTKI BUDZETOWE'!P27","v":0},{"$f":"'10-JEDNOSTKI BUDZETOWE'!Q27","v":0},{"$f":"'10-JEDNOSTKI BUDZETOWE'!R27","v":0},{"$f":"'10-JEDNOSTKI BUDZETOWE'!C28","v":0},{"$f":"'10-JEDNOSTKI BUDZETOWE'!D28","v":0},{"$f":"'10-JEDNOSTKI BUDZETOWE'!E28","v":0},{"$f":"'10-JEDNOSTKI BUDZETOWE'!F28","v":0},{"$f":"'10-JEDNOSTKI BUDZETOWE'!G28","v":0},{"$f":"'10-JEDNOSTKI BUDZETOWE'!H28","v":0},{"$f":"'10-JEDNOSTKI BUDZETOWE'!I28","v":0},{"$f":"'10-JEDNOSTKI BUDZETOWE'!J28","v":0},{"$f":"'10-JEDNOSTKI BUDZETOWE'!K28","v":0},{"$f":"'10-JEDNOSTKI BUDZETOWE'!L28","v":0},{"$f":"'10-JEDNOSTKI BUDZETOWE'!M28","v":0},{"$f":"'10-JEDNOSTKI BUDZETOWE'!N28","v":0},{"$f":"'10-JEDNOSTKI BUDZETOWE'!O28","v":0},{"$f":"'10-JEDNOSTKI BUDZETOWE'!P28","v":0},{"$f":"'10-JEDNOSTKI BUDZETOWE'!Q28","v":0},{"$f":"'10-JEDNOSTKI BUDZETOWE'!R28","v":0},{"$f":"'10-JEDNOSTKI BUDZETOWE'!C29","v":0},{"$f":"'10-JEDNOSTKI BUDZETOWE'!D29","v":0},{"$f":"'10-JEDNOSTKI BUDZETOWE'!E29","v":0},{"$f":"'10-JEDNOSTKI BUDZETOWE'!F29","v":0},{"$f":"'10-JEDNOSTKI BUDZETOWE'!G29","v":0},{"$f":"'10-JEDNOSTKI BUDZETOWE'!H29","v":0},{"$f":"'10-JEDNOSTKI BUDZETOWE'!I29","v":0},{"$f":"'10-JEDNOSTKI BUDZETOWE'!J29","v":0},{"$f":"'10-JEDNOSTKI BUDZETOWE'!K29","v":0},{"$f":"'10-JEDNOSTKI BUDZETOWE'!L29","v":0},{"$f":"'10-JEDNOSTKI BUDZETOWE'!M29","v":0},{"$f":"'10-JEDNOSTKI BUDZETOWE'!N29","v":0},{"$f":"'10-JEDNOSTKI BUDZETOWE'!O29","v":0},{"$f":"'10-JEDNOSTKI BUDZETOWE'!P29","v":0},{"$f":"'10-JEDNOSTKI BUDZETOWE'!Q29","v":0},{"$f":"'10-JEDNOSTKI BUDZETOWE'!R29","v":0},{"$f":"'10-JEDNOSTKI BUDZETOWE'!C30","v":0},{"$f":"'10-JEDNOSTKI BUDZETOWE'!D30","v":0},{"$f":"'10-JEDNOSTKI BUDZETOWE'!E30","v":0},{"$f":"'10-JEDNOSTKI BUDZETOWE'!F30","v":0},{"$f":"'10-JEDNOSTKI BUDZETOWE'!G30","v":0},{"$f":"'10-JEDNOSTKI BUDZETOWE'!H30","v":0},{"$f":"'10-JEDNOSTKI BUDZETOWE'!I30","v":0},{"$f":"'10-JEDNOSTKI BUDZETOWE'!J30","v":0},{"$f":"'10-JEDNOSTKI BUDZETOWE'!K30","v":0},{"$f":"'10-JEDNOSTKI BUDZETOWE'!L30","v":0},{"$f":"'10-JEDNOSTKI BUDZETOWE'!M30","v":0},{"$f":"'10-JEDNOSTKI BUDZETOWE'!N30","v":0},{"$f":"'10-JEDNOSTKI BUDZETOWE'!O30","v":0},{"$f":"'10-JEDNOSTKI BUDZETOWE'!P30","v":0},{"$f":"'10-JEDNOSTKI BUDZETOWE'!Q30","v":0},{"$f":"'10-JEDNOSTKI BUDZETOWE'!R30","v":0},{"$f":"'10-JEDNOSTKI BUDZETOWE'!C31","v":0},{"$f":"'10-JEDNOSTKI BUDZETOWE'!D31","v":0},{"$f":"'10-JEDNOSTKI BUDZETOWE'!E31","v":0},{"$f":"'10-JEDNOSTKI BUDZETOWE'!F31","v":0},{"$f":"'10-JEDNOSTKI BUDZETOWE'!G31","v":0},{"$f":"'10-JEDNOSTKI BUDZETOWE'!H31","v":0},{"$f":"'10-JEDNOSTKI BUDZETOWE'!I31","v":0},{"$f":"'10-JEDNOSTKI BUDZETOWE'!J31","v":0},{"$f":"'10-JEDNOSTKI BUDZETOWE'!K31","v":0},{"$f":"'10-JEDNOSTKI BUDZETOWE'!L31","v":0},{"$f":"'10-JEDNOSTKI BUDZETOWE'!M31","v":0},{"$f":"'10-JEDNOSTKI BUDZETOWE'!N31","v":0},{"$f":"'10-JEDNOSTKI BUDZETOWE'!O31","v":0},{"$f":"'10-JEDNOSTKI BUDZETOWE'!P31","v":0},{"$f":"'10-JEDNOSTKI BUDZETOWE'!Q31","v":0},{"$f":"'10-JEDNOSTKI BUDZETOWE'!R31","v":0},{"$f":"'10-JEDNOSTKI BUDZETOWE'!C32","v":0},{"$f":"'10-JEDNOSTKI BUDZETOWE'!D32","v":0},{"$f":"'10-JEDNOSTKI BUDZETOWE'!E32","v":0},{"$f":"'10-JEDNOSTKI BUDZETOWE'!F32","v":0},{"$f":"'10-JEDNOSTKI BUDZETOWE'!G32","v":0},{"$f":"'10-JEDNOSTKI BUDZETOWE'!H32","v":0},{"$f":"'10-JEDNOSTKI BUDZETOWE'!I32","v":0},{"$f":"'10-JEDNOSTKI BUDZETOWE'!J32","v":0},{"$f":"'10-JEDNOSTKI BUDZETOWE'!K32","v":0},{"$f":"'10-JEDNOSTKI BUDZETOWE'!L32","v":0},{"$f":"'10-JEDNOSTKI BUDZETOWE'!M32","v":0},{"$f":"'10-JEDNOSTKI BUDZETOWE'!N32","v":0},{"$f":"'10-JEDNOSTKI BUDZETOWE'!O32","v":0},{"$f":"'10-JEDNOSTKI BUDZETOWE'!P32","v":0},{"$f":"'10-JEDNOSTKI BUDZETOWE'!Q32","v":0},{"$f":"'10-JEDNOSTKI BUDZETOWE'!R32","v":0},{"$f":"'10-JEDNOSTKI BUDZETOWE'!C33","v":0},{"$f":"'10-JEDNOSTKI BUDZETOWE'!D33","v":0},{"$f":"'10-JEDNOSTKI BUDZETOWE'!E33","v":0},{"$f":"'10-JEDNOSTKI BUDZETOWE'!F33","v":0},{"$f":"'10-JEDNOSTKI BUDZETOWE'!G33","v":0},{"$f":"'10-JEDNOSTKI BUDZETOWE'!H33","v":0},{"$f":"'10-JEDNOSTKI BUDZETOWE'!I33","v":0},{"$f":"'10-JEDNOSTKI BUDZETOWE'!J33","v":0},{"$f":"'10-JEDNOSTKI BUDZETOWE'!K33","v":0},{"$f":"'10-JEDNOSTKI BUDZETOWE'!L33","v":0},{"$f":"'10-JEDNOSTKI BUDZETOWE'!M33","v":0},{"$f":"'10-JEDNOSTKI BUDZETOWE'!N33","v":0},{"$f":"'10-JEDNOSTKI BUDZETOWE'!O33","v":0},{"$f":"'10-JEDNOSTKI BUDZETOWE'!P33","v":0},{"$f":"'10-JEDNOSTKI BUDZETOWE'!Q33","v":0},{"$f":"'10-JEDNOSTKI BUDZETOWE'!R33","v":0},{"$f":"'10-JEDNOSTKI BUDZETOWE'!C34","v":0},{"$f":"'10-JEDNOSTKI BUDZETOWE'!D34","v":0},{"$f":"'10-JEDNOSTKI BUDZETOWE'!E34","v":0},{"$f":"'10-JEDNOSTKI BUDZETOWE'!F34","v":0},{"$f":"'10-JEDNOSTKI BUDZETOWE'!G34","v":0},{"$f":"'10-JEDNOSTKI BUDZETOWE'!H34","v":0},{"$f":"'10-JEDNOSTKI BUDZETOWE'!I34","v":0},{"$f":"'10-JEDNOSTKI BUDZETOWE'!J34","v":0},{"$f":"'10-JEDNOSTKI BUDZETOWE'!K34","v":0},{"$f":"'10-JEDNOSTKI BUDZETOWE'!L34","v":0},{"$f":"'10-JEDNOSTKI BUDZETOWE'!M34","v":0},{"$f":"'10-JEDNOSTKI BUDZETOWE'!N34","v":0},{"$f":"'10-JEDNOSTKI BUDZETOWE'!O34","v":0},{"$f":"'10-JEDNOSTKI BUDZETOWE'!P34","v":0},{"$f":"'10-JEDNOSTKI BUDZETOWE'!Q34","v":0},{"$f":"'10-JEDNOSTKI BUDZETOWE'!R34","v":0},{"$f":"'10-JEDNOSTKI BUDZETOWE'!C35","v":0},{"$f":"'10-JEDNOSTKI BUDZETOWE'!D35","v":0},{"$f":"'10-JEDNOSTKI BUDZETOWE'!E35","v":0},{"$f":"'10-JEDNOSTKI BUDZETOWE'!F35","v":0},{"$f":"'10-JEDNOSTKI BUDZETOWE'!G35","v":0},{"$f":"'10-JEDNOSTKI BUDZETOWE'!H35","v":0},{"$f":"'10-JEDNOSTKI BUDZETOWE'!I35","v":0},{"$f":"'10-JEDNOSTKI BUDZETOWE'!J35","v":0},{"$f":"'10-JEDNOSTKI BUDZETOWE'!K35","v":0},{"$f":"'10-JEDNOSTKI BUDZETOWE'!L35","v":0},{"$f":"'10-JEDNOSTKI BUDZETOWE'!M35","v":0},{"$f":"'10-JEDNOSTKI BUDZETOWE'!N35","v":0},{"$f":"'10-JEDNOSTKI BUDZETOWE'!O35","v":0},{"$f":"'10-JEDNOSTKI BUDZETOWE'!P35","v":0},{"$f":"'10-JEDNOSTKI BUDZETOWE'!Q35","v":0},{"$f":"'10-JEDNOSTKI BUDZETOWE'!R35","v":0}]
[{"$f":"'40-FUNDUSZE CELOWE'!A8","v":""},{"$f":"IF(LEN('40-FUNDUSZE CELOWE'!M11)=1,\"0\"&'40-FUNDUSZE CELOWE'!M11,'40-FUNDUSZE CELOWE'!M11)","v":0},null,null,null,null,{"$f":"'40-FUNDUSZE CELOWE'!L11","v":40},{"$f":"'40-FUNDUSZE CELOWE'!K8","v":0},{"$f":"'40-FUNDUSZE CELOWE'!H8","v":0},null,null,{"$f":"'40-FUNDUSZE CELOWE'!C24","v":0},{"$f":"'40-FUNDUSZE CELOWE'!D24","v":0},{"$f":"'40-FUNDUSZE CELOWE'!E24","v":0},{"$f":"'40-FUNDUSZE CELOWE'!F24","v":0},{"$f":"'40-FUNDUSZE CELOWE'!G24","v":0},{"$f":"'40-FUNDUSZE CELOWE'!H24","v":0},{"$f":"'40-FUNDUSZE CELOWE'!I24","v":0},{"$f":"'40-FUNDUSZE CELOWE'!J24","v":0},{"$f":"'40-FUNDUSZE CELOWE'!K24","v":0},{"$f":"'40-FUNDUSZE CELOWE'!L24","v":0},{"$f":"'40-FUNDUSZE CELOWE'!M24","v":0},{"$f":"'40-FUNDUSZE CELOWE'!N24","v":0},{"$f":"'40-FUNDUSZE CELOWE'!O24","v":0},{"$f":"'40-FUNDUSZE CELOWE'!P24","v":0},{"$f":"'40-FUNDUSZE CELOWE'!Q24","v":0},{"$f":"'40-FUNDUSZE CELOWE'!R24","v":0},{"$f":"'40-FUNDUSZE CELOWE'!C26","v":0},{"$f":"'40-FUNDUSZE CELOWE'!D26","v":0},{"$f":"'40-FUNDUSZE CELOWE'!E26","v":0},{"$f":"'40-FUNDUSZE CELOWE'!F26","v":0},{"$f":"'40-FUNDUSZE CELOWE'!G26","v":0},{"$f":"'40-FUNDUSZE CELOWE'!H26","v":0},{"$f":"'40-FUNDUSZE CELOWE'!I26","v":0},{"$f":"'40-FUNDUSZE CELOWE'!J26","v":0},{"$f":"'40-FUNDUSZE CELOWE'!K26","v":0},{"$f":"'40-FUNDUSZE CELOWE'!L26","v":0},{"$f":"'40-FUNDUSZE CELOWE'!M26","v":0},{"$f":"'40-FUNDUSZE CELOWE'!N26","v":0},{"$f":"'40-FUNDUSZE CELOWE'!O26","v":0},{"$f":"'40-FUNDUSZE CELOWE'!P26","v":0},{"$f":"'40-FUNDUSZE CELOWE'!Q26","v":0},{"$f":"'40-FUNDUSZE CELOWE'!R26","v":0},{"$f":"'40-FUNDUSZE CELOWE'!C27","v":0},{"$f":"'40-FUNDUSZE CELOWE'!D27","v":0},{"$f":"'40-FUNDUSZE CELOWE'!E27","v":0},{"$f":"'40-FUNDUSZE CELOWE'!F27","v":0},{"$f":"'40-FUNDUSZE CELOWE'!G27","v":0},{"$f":"'40-FUNDUSZE CELOWE'!H27","v":0},{"$f":"'40-FUNDUSZE CELOWE'!I27","v":0},{"$f":"'40-FUNDUSZE CELOWE'!J27","v":0},{"$f":"'40-FUNDUSZE CELOWE'!K27","v":0},{"$f":"'40-FUNDUSZE CELOWE'!L27","v":0},{"$f":"'40-FUNDUSZE CELOWE'!M27","v":0},{"$f":"'40-FUNDUSZE CELOWE'!N27","v":0},{"$f":"'40-FUNDUSZE CELOWE'!O27","v":0},{"$f":"'40-FUNDUSZE CELOWE'!P27","v":0},{"$f":"'40-FUNDUSZE CELOWE'!Q27","v":0},{"$f":"'40-FUNDUSZE CELOWE'!R27","v":0},{"$f":"'40-FUNDUSZE CELOWE'!C28","v":0},{"$f":"'40-FUNDUSZE CELOWE'!D28","v":0},{"$f":"'40-FUNDUSZE CELOWE'!E28","v":0},{"$f":"'40-FUNDUSZE CELOWE'!F28","v":0},{"$f":"'40-FUNDUSZE CELOWE'!G28","v":0},{"$f":"'40-FUNDUSZE CELOWE'!H28","v":0},{"$f":"'40-FUNDUSZE CELOWE'!I28","v":0},{"$f":"'40-FUNDUSZE CELOWE'!J28","v":0},{"$f":"'40-FUNDUSZE CELOWE'!K28","v":0},{"$f":"'40-FUNDUSZE CELOWE'!L28","v":0},{"$f":"'40-FUNDUSZE CELOWE'!M28","v":0},{"$f":"'40-FUNDUSZE CELOWE'!N28","v":0},{"$f":"'40-FUNDUSZE CELOWE'!O28","v":0},{"$f":"'40-FUNDUSZE CELOWE'!P28","v":0},{"$f":"'40-FUNDUSZE CELOWE'!Q28","v":0},{"$f":"'40-FUNDUSZE CELOWE'!R28","v":0},{"$f":"'40-FUNDUSZE CELOWE'!C29","v":0},{"$f":"'40-FUNDUSZE CELOWE'!D29","v":0},{"$f":"'40-FUNDUSZE CELOWE'!E29","v":0},{"$f":"'40-FUNDUSZE CELOWE'!F29","v":0},{"$f":"'40-FUNDUSZE CELOWE'!G29","v":0},{"$f":"'40-FUNDUSZE CELOWE'!H29","v":0},{"$f":"'40-FUNDUSZE CELOWE'!I29","v":0},{"$f":"'40-FUNDUSZE CELOWE'!J29","v":0},{"$f":"'40-FUNDUSZE CELOWE'!K29","v":0},{"$f":"'40-FUNDUSZE CELOWE'!L29","v":0},{"$f":"'40-FUNDUSZE CELOWE'!M29","v":0},{"$f":"'40-FUNDUSZE CELOWE'!N29","v":0},{"$f":"'40-FUNDUSZE CELOWE'!O29","v":0},{"$f":"'40-FUNDUSZE CELOWE'!P29","v":0},{"$f":"'40-FUNDUSZE CELOWE'!Q29","v":0},{"$f":"'40-FUNDUSZE CELOWE'!R29","v":0},{"$f":"'40-FUNDUSZE CELOWE'!C30","v":0},{"$f":"'40-FUNDUSZE CELOWE'!D30","v":0},{"$f":"'40-FUNDUSZE CELOWE'!E30","v":0},{"$f":"'40-FUNDUSZE CELOWE'!F30","v":0},{"$f":"'40-FUNDUSZE CELOWE'!G30","v":0},{"$f":"'40-FUNDUSZE CELOWE'!H30","v":0},{"$f":"'40-FUNDUSZE CELOWE'!I30","v":0},{"$f":"'40-FUNDUSZE CELOWE'!J30","v":0},{"$f":"'40-FUNDUSZE CELOWE'!K30","v":0},{"$f":"'40-FUNDUSZE CELOWE'!L30","v":0},{"$f":"'40-FUNDUSZE CELOWE'!M30","v":0},{"$f":"'40-FUNDUSZE CELOWE'!N30","v":0},{"$f":"'40-FUNDUSZE CELOWE'!O30","v":0},{"$f":"'40-FUNDUSZE CELOWE'!P30","v":0},{"$f":"'40-FUNDUSZE CELOWE'!Q30","v":0},{"$f":"'40-FUNDUSZE CELOWE'!R30","v":0},{"$f":"'40-FUNDUSZE CELOWE'!C31","v":0},{"$f":"'40-FUNDUSZE CELOWE'!D31","v":0},{"$f":"'40-FUNDUSZE CELOWE'!E31","v":0},{"$f":"'40-FUNDUSZE CELOWE'!F31","v":0},{"$f":"'40-FUNDUSZE CELOWE'!G31","v":0},{"$f":"'40-FUNDUSZE CELOWE'!H31","v":0},{"$f":"'40-FUNDUSZE CELOWE'!I31","v":0},{"$f":"'40-FUNDUSZE CELOWE'!J31","v":0},{"$f":"'40-FUNDUSZE CELOWE'!K31","v":0},{"$f":"'40-FUNDUSZE CELOWE'!L31","v":0},{"$f":"'40-FUNDUSZE CELOWE'!M31","v":0},{"$f":"'40-FUNDUSZE CELOWE'!N31","v":0},{"$f":"'40-FUNDUSZE CELOWE'!O31","v":0},{"$f":"'40-FUNDUSZE CELOWE'!P31","v":0},{"$f":"'40-FUNDUSZE CELOWE'!Q31","v":0},{"$f":"'40-FUNDUSZE CELOWE'!R31","v":0},{"$f":"'40-FUNDUSZE CELOWE'!C32","v":0},{"$f":"'40-FUNDUSZE CELOWE'!D32","v":0},{"$f":"'40-FUNDUSZE CELOWE'!E32","v":0},{"$f":"'40-FUNDUSZE CELOWE'!F32","v":0},{"$f":"'40-FUNDUSZE CELOWE'!G32","v":0},{"$f":"'40-FUNDUSZE CELOWE'!H32","v":0},{"$f":"'40-FUNDUSZE CELOWE'!I32","v":0},{"$f":"'40-FUNDUSZE CELOWE'!J32","v":0},{"$f":"'40-FUNDUSZE CELOWE'!K32","v":0},{"$f":"'40-FUNDUSZE CELOWE'!L32","v":0},{"$f":"'40-FUNDUSZE CELOWE'!M32","v":0},{"$f":"'40-FUNDUSZE CELOWE'!N32","v":0},{"$f":"'40-FUNDUSZE CELOWE'!O32","v":0},{"$f":"'40-FUNDUSZE CELOWE'!P32","v":0},{"$f":"'40-FUNDUSZE CELOWE'!Q32","v":0},{"$f":"'40-FUNDUSZE CELOWE'!R32","v":0},{"$f":"'40-FUNDUSZE CELOWE'!C33","v":0},{"$f":"'40-FUNDUSZE CELOWE'!D33","v":0},{"$f":"'40-FUNDUSZE CELOWE'!E33","v":0},{"$f":"'40-FUNDUSZE CELOWE'!F33","v":0},{"$f":"'40-FUNDUSZE CELOWE'!G33","v":0},{"$f":"'40-FUNDUSZE CELOWE'!H33","v":0},{"$f":"'40-FUNDUSZE CELOWE'!I33","v":0},{"$f":"'40-FUNDUSZE CELOWE'!J33","v":0},{"$f":"'40-FUNDUSZE CELOWE'!K33","v":0},{"$f":"'40-FUNDUSZE CELOWE'!L33","v":0},{"$f":"'40-FUNDUSZE CELOWE'!M33","v":0},{"$f":"'40-FUNDUSZE CELOWE'!N33","v":0},{"$f":"'40-FUNDUSZE CELOWE'!O33","v":0},{"$f":"'40-FUNDUSZE CELOWE'!P33","v":0},{"$f":"'40-FUNDUSZE CELOWE'!Q33","v":0},{"$f":"'40-FUNDUSZE CELOWE'!R33","v":0},{"$f":"'40-FUNDUSZE CELOWE'!C34","v":0},{"$f":"'40-FUNDUSZE CELOWE'!D34","v":0},{"$f":"'40-FUNDUSZE CELOWE'!E34","v":0},{"$f":"'40-FUNDUSZE CELOWE'!F34","v":0},{"$f":"'40-FUNDUSZE CELOWE'!G34","v":0},{"$f":"'40-FUNDUSZE CELOWE'!H34","v":0},{"$f":"'40-FUNDUSZE CELOWE'!I34","v":0},{"$f":"'40-FUNDUSZE CELOWE'!J34","v":0},{"$f":"'40-FUNDUSZE CELOWE'!K34","v":0},{"$f":"'40-FUNDUSZE CELOWE'!L34","v":0},{"$f":"'40-FUNDUSZE CELOWE'!M34","v":0},{"$f":"'40-FUNDUSZE CELOWE'!N34","v":0},{"$f":"'40-FUNDUSZE CELOWE'!O34","v":0},{"$f":"'40-FUNDUSZE CELOWE'!P34","v":0},{"$f":"'40-FUNDUSZE CELOWE'!Q34","v":0},{"$f":"'40-FUNDUSZE CELOWE'!R34","v":0},{"$f":"'40-FUNDUSZE CELOWE'!C35","v":0},{"$f":"'40-FUNDUSZE CELOWE'!D35","v":0},{"$f":"'40-FUNDUSZE CELOWE'!E35","v":0},{"$f":"'40-FUNDUSZE CELOWE'!F35","v":0},{"$f":"'40-FUNDUSZE CELOWE'!G35","v":0},{"$f":"'40-FUNDUSZE CELOWE'!H35","v":0},{"$f":"'40-FUNDUSZE CELOWE'!I35","v":0},{"$f":"'40-FUNDUSZE CELOWE'!J35","v":0},{"$f":"'40-FUNDUSZE CELOWE'!K35","v":0},{"$f":"'40-FUNDUSZE CELOWE'!L35","v":0},{"$f":"'40-FUNDUSZE CELOWE'!M35","v":0},{"$f":"'40-FUNDUSZE CELOWE'!N35","v":0},{"$f":"'40-FUNDUSZE CELOWE'!O35","v":0},{"$f":"'40-FUNDUSZE CELOWE'!P35","v":0},{"$f":"'40-FUNDUSZE CELOWE'!Q35","v":0},{"$f":"'40-FUNDUSZE CELOWE'!R35","v":0}]
[{"$f":"'99-DYSPONENT ZBIORCZO'!A8","v":"Brak regonu"},{"$f":"'99-DYSPONENT ZBIORCZO'!M11","v":"Brak numeru cz. b."},null,null,null,null,{"$f":"'99-DYSPONENT ZBIORCZO'!L11","v":99},{"$f":"'99-DYSPONENT ZBIORCZO'!K8","v":"Brak roku"},{"$f":"'99-DYSPONENT ZBIORCZO'!H8","v":"Brak nr kwartału"},null,null,{"$f":"'99-DYSPONENT ZBIORCZO'!C24","v":0},{"$f":"'99-DYSPONENT ZBIORCZO'!D24","v":0},{"$f":"'99-DYSPONENT ZBIORCZO'!E24","v":0},{"$f":"'99-DYSPONENT ZBIORCZO'!F24","v":0},{"$f":"'99-DYSPONENT ZBIORCZO'!G24","v":0},{"$f":"'99-DYSPONENT ZBIORCZO'!H24","v":0},{"$f":"'99-DYSPONENT ZBIORCZO'!I24","v":0},{"$f":"'99-DYSPONENT ZBIORCZO'!J24","v":0},{"$f":"'99-DYSPONENT ZBIORCZO'!K24","v":0},{"$f":"'99-DYSPONENT ZBIORCZO'!L24","v":0},{"$f":"'99-DYSPONENT ZBIORCZO'!M24","v":0},{"$f":"'99-DYSPONENT ZBIORCZO'!N24","v":0},{"$f":"'99-DYSPONENT ZBIORCZO'!O24","v":0},{"$f":"'99-DYSPONENT ZBIORCZO'!P24","v":0},{"$f":"'99-DYSPONENT ZBIORCZO'!Q24","v":0},{"$f":"'99-DYSPONENT ZBIORCZO'!R24","v":0},{"$f":"'99-DYSPONENT ZBIORCZO'!C26","v":0},{"$f":"'99-DYSPONENT ZBIORCZO'!D26","v":0},{"$f":"'99-DYSPONENT ZBIORCZO'!E26","v":0},{"$f":"'99-DYSPONENT ZBIORCZO'!F26","v":0},{"$f":"'99-DYSPONENT ZBIORCZO'!G26","v":0},{"$f":"'99-DYSPONENT ZBIORCZO'!H26","v":0},{"$f":"'99-DYSPONENT ZBIORCZO'!I26","v":0},{"$f":"'99-DYSPONENT ZBIORCZO'!J26","v":0},{"$f":"'99-DYSPONENT ZBIORCZO'!K26","v":0},{"$f":"'99-DYSPONENT ZBIORCZO'!L26","v":0},{"$f":"'99-DYSPONENT ZBIORCZO'!M26","v":0},{"$f":"'99-DYSPONENT ZBIORCZO'!N26","v":0},{"$f":"'99-DYSPONENT ZBIORCZO'!O26","v":0},{"$f":"'99-DYSPONENT ZBIORCZO'!P26","v":0},{"$f":"'99-DYSPONENT ZBIORCZO'!Q26","v":0},{"$f":"'99-DYSPONENT ZBIORCZO'!R26","v":0},{"$f":"'99-DYSPONENT ZBIORCZO'!C27","v":0},{"$f":"'99-DYSPONENT ZBIORCZO'!D27","v":0},{"$f":"'99-DYSPONENT ZBIORCZO'!E27","v":0},{"$f":"'99-DYSPONENT ZBIORCZO'!F27","v":0},{"$f":"'99-DYSPONENT ZBIORCZO'!G27","v":0},{"$f":"'99-DYSPONENT ZBIORCZO'!H27","v":0},{"$f":"'99-DYSPONENT ZBIORCZO'!I27","v":0},{"$f":"'99-DYSPONENT ZBIORCZO'!J27","v":0},{"$f":"'99-DYSPONENT ZBIORCZO'!K27","v":0},{"$f":"'99-DYSPONENT ZBIORCZO'!L27","v":0},{"$f":"'99-DYSPONENT ZBIORCZO'!M27","v":0},{"$f":"'99-DYSPONENT ZBIORCZO'!N27","v":0},{"$f":"'99-DYSPONENT ZBIORCZO'!O27","v":0},{"$f":"'99-DYSPONENT ZBIORCZO'!P27","v":0},{"$f":"'99-DYSPONENT ZBIORCZO'!Q27","v":0},{"$f":"'99-DYSPONENT ZBIORCZO'!R27","v":0},{"$f":"'99-DYSPONENT ZBIORCZO'!C28","v":0},{"$f":"'99-DYSPONENT ZBIORCZO'!D28","v":0},{"$f":"'99-DYSPONENT ZBIORCZO'!E28","v":0},{"$f":"'99-DYSPONENT ZBIORCZO'!F28","v":0},{"$f":"'99-DYSPONENT ZBIORCZO'!G28","v":0},{"$f":"'99-DYSPONENT ZBIORCZO'!H28","v":0},{"$f":"'99-DYSPONENT ZBIORCZO'!I28","v":0},{"$f":"'99-DYSPONENT ZBIORCZO'!J28","v":0},{"$f":"'99-DYSPONENT ZBIORCZO'!K28","v":0},{"$f":"'99-DYSPONENT ZBIORCZO'!L28","v":0},{"$f":"'99-DYSPONENT ZBIORCZO'!M28","v":0},{"$f":"'99-DYSPONENT ZBIORCZO'!N28","v":0},{"$f":"'99-DYSPONENT ZBIORCZO'!O28","v":0},{"$f":"'99-DYSPONENT ZBIORCZO'!P28","v":0},{"$f":"'99-DYSPONENT ZBIORCZO'!Q28","v":0},{"$f":"'99-DYSPONENT ZBIORCZO'!R28","v":0},{"$f":"'99-DYSPONENT ZBIORCZO'!C29","v":0},{"$f":"'99-DYSPONENT ZBIORCZO'!D29","v":0},{"$f":"'99-DYSPONENT ZBIORCZO'!E29","v":0},{"$f":"'99-DYSPONENT ZBIORCZO'!F29","v":0},{"$f":"'99-DYSPONENT ZBIORCZO'!G29","v":0},{"$f":"'99-DYSPONENT ZBIORCZO'!H29","v":0},{"$f":"'99-DYSPONENT ZBIORCZO'!I29","v":0},{"$f":"'99-DYSPONENT ZBIORCZO'!J29","v":0},{"$f":"'99-DYSPONENT ZBIORCZO'!K29","v":0},{"$f":"'99-DYSPONENT ZBIORCZO'!L29","v":0},{"$f":"'99-DYSPONENT ZBIORCZO'!M29","v":0},{"$f":"'99-DYSPONENT ZBIORCZO'!N29","v":0},{"$f":"'99-DYSPONENT ZBIORCZO'!O29","v":0},{"$f":"'99-DYSPONENT ZBIORCZO'!P29","v":0},{"$f":"'99-DYSPONENT ZBIORCZO'!Q29","v":0},{"$f":"'99-DYSPONENT ZBIORCZO'!R29","v":0},{"$f":"'99-DYSPONENT ZBIORCZO'!C30","v":0},{"$f":"'99-DYSPONENT ZBIORCZO'!D30","v":0},{"$f":"'99-DYSPONENT ZBIORCZO'!E30","v":0},{"$f":"'99-DYSPONENT ZBIORCZO'!F30","v":0},{"$f":"'99-DYSPONENT ZBIORCZO'!G30","v":0},{"$f":"'99-DYSPONENT ZBIORCZO'!H30","v":0},{"$f":"'99-DYSPONENT ZBIORCZO'!I30","v":0},{"$f":"'99-DYSPONENT ZBIORCZO'!J30","v":0},{"$f":"'99-DYSPONENT ZBIORCZO'!K30","v":0},{"$f":"'99-DYSPONENT ZBIORCZO'!L30","v":0},{"$f":"'99-DYSPONENT ZBIORCZO'!M30","v":0},{"$f":"'99-DYSPONENT ZBIORCZO'!N30","v":0},{"$f":"'99-DYSPONENT ZBIORCZO'!O30","v":0},{"$f":"'99-DYSPONENT ZBIORCZO'!P30","v":0},{"$f":"'99-DYSPONENT ZBIORCZO'!Q30","v":0},{"$f":"'99-DYSPONENT ZBIORCZO'!R30","v":0},{"$f":"'99-DYSPONENT ZBIORCZO'!C31","v":0},{"$f":"'99-DYSPONENT ZBIORCZO'!D31","v":0},{"$f":"'99-DYSPONENT ZBIORCZO'!E31","v":0},{"$f":"'99-DYSPONENT ZBIORCZO'!F31","v":0},{"$f":"'99-DYSPONENT ZBIORCZO'!G31","v":0},{"$f":"'99-DYSPONENT ZBIORCZO'!H31","v":0},{"$f":"'99-DYSPONENT ZBIORCZO'!I31","v":0},{"$f":"'99-DYSPONENT ZBIORCZO'!J31","v":0},{"$f":"'99-DYSPONENT ZBIORCZO'!K31","v":0},{"$f":"'99-DYSPONENT ZBIORCZO'!L31","v":0},{"$f":"'99-DYSPONENT ZBIORCZO'!M31","v":0},{"$f":"'99-DYSPONENT ZBIORCZO'!N31","v":0},{"$f":"'99-DYSPONENT ZBIORCZO'!O31","v":0},{"$f":"'99-DYSPONENT ZBIORCZO'!P31","v":0},{"$f":"'99-DYSPONENT ZBIORCZO'!Q31","v":0},{"$f":"'99-DYSPONENT ZBIORCZO'!R31","v":0},{"$f":"'99-DYSPONENT ZBIORCZO'!C32","v":0},{"$f":"'99-DYSPONENT ZBIORCZO'!D32","v":0},{"$f":"'99-DYSPONENT ZBIORCZO'!E32","v":0},{"$f":"'99-DYSPONENT ZBIORCZO'!F32","v":0},{"$f":"'99-DYSPONENT ZBIORCZO'!G32","v":0},{"$f":"'99-DYSPONENT ZBIORCZO'!H32","v":0},{"$f":"'99-DYSPONENT ZBIORCZO'!I32","v":0},{"$f":"'99-DYSPONENT ZBIORCZO'!J32","v":0},{"$f":"'99-DYSPONENT ZBIORCZO'!K32","v":0},{"$f":"'99-DYSPONENT ZBIORCZO'!L32","v":0},{"$f":"'99-DYSPONENT ZBIORCZO'!M32","v":0},{"$f":"'99-DYSPONENT ZBIORCZO'!N32","v":0},{"$f":"'99-DYSPONENT ZBIORCZO'!O32","v":0},{"$f":"'99-DYSPONENT ZBIORCZO'!P32","v":0},{"$f":"'99-DYSPONENT ZBIORCZO'!Q32","v":0},{"$f":"'99-DYSPONENT ZBIORCZO'!R32","v":0},{"$f":"'99-DYSPONENT ZBIORCZO'!C33","v":0},{"$f":"'99-DYSPONENT ZBIORCZO'!D33","v":0},{"$f":"'99-DYSPONENT ZBIORCZO'!E33","v":0},{"$f":"'99-DYSPONENT ZBIORCZO'!F33","v":0},{"$f":"'99-DYSPONENT ZBIORCZO'!G33","v":0},{"$f":"'99-DYSPONENT ZBIORCZO'!H33","v":0},{"$f":"'99-DYSPONENT ZBIORCZO'!I33","v":0},{"$f":"'99-DYSPONENT ZBIORCZO'!J33","v":0},{"$f":"'99-DYSPONENT ZBIORCZO'!K33","v":0},{"$f":"'99-DYSPONENT ZBIORCZO'!L33","v":0},{"$f":"'99-DYSPONENT ZBIORCZO'!M33","v":0},{"$f":"'99-DYSPONENT ZBIORCZO'!N33","v":0},{"$f":"'99-DYSPONENT ZBIORCZO'!O33","v":0},{"$f":"'99-DYSPONENT ZBIORCZO'!P33","v":0},{"$f":"'99-DYSPONENT ZBIORCZO'!Q33","v":0},{"$f":"'99-DYSPONENT ZBIORCZO'!R33","v":0},{"$f":"'99-DYSPONENT ZBIORCZO'!C34","v":0},{"$f":"'99-DYSPONENT ZBIORCZO'!D34","v":0},{"$f":"'99-DYSPONENT ZBIORCZO'!E34","v":0},{"$f":"'99-DYSPONENT ZBIORCZO'!F34","v":0},{"$f":"'99-DYSPONENT ZBIORCZO'!G34","v":0},{"$f":"'99-DYSPONENT ZBIORCZO'!H34","v":0},{"$f":"'99-DYSPONENT ZBIORCZO'!I34","v":0},{"$f":"'99-DYSPONENT ZBIORCZO'!J34","v":0},{"$f":"'99-DYSPONENT ZBIORCZO'!K34","v":0},{"$f":"'99-DYSPONENT ZBIORCZO'!L34","v":0},{"$f":"'99-DYSPONENT ZBIORCZO'!M34","v":0},{"$f":"'99-DYSPONENT ZBIORCZO'!N34","v":0},{"$f":"'99-DYSPONENT ZBIORCZO'!O34","v":0},{"$f":"'99-DYSPONENT ZBIORCZO'!P34","v":0},{"$f":"'99-DYSPONENT ZBIORCZO'!Q34","v":0},{"$f":"'99-DYSPONENT ZBIORCZO'!R34","v":0},{"$f":"'99-DYSPONENT ZBIORCZO'!C35","v":0},{"$f":"'99-DYSPONENT ZBIORCZO'!D35","v":0},{"$f":"'99-DYSPONENT ZBIORCZO'!E35","v":0},{"$f":"'99-DYSPONENT ZBIORCZO'!F35","v":0},{"$f":"'99-DYSPONENT ZBIORCZO'!G35","v":0},{"$f":"'99-DYSPONENT ZBIORCZO'!H35","v":0},{"$f":"'99-DYSPONENT ZBIORCZO'!I35","v":0},{"$f":"'99-DYSPONENT ZBIORCZO'!J35","v":0},{"$f":"'99-DYSPONENT ZBIORCZO'!K35","v":0},{"$f":"'99-DYSPONENT ZBIORCZO'!L35","v":0},{"$f":"'99-DYSPONENT ZBIORCZO'!M35","v":0},{"$f":"'99-DYSPONENT ZBIORCZO'!N35","v":0},{"$f":"'99-DYSPONENT ZBIORCZO'!O35","v":0},{"$f":"'99-DYSPONENT ZBIORCZO'!P35","v":0},{"$f":"'99-DYSPONENT ZBIORCZO'!Q35","v":0},{"$f":"'99-DYSPONENT ZBIORCZO'!R35","v":0}]

{"sheet":"RBZF","index":5,"n_rows":4,"n_cols":32,"rows_kept":4,"cut":false,"hidden":true,"merged":[]}
["REGON","CZ_BU","WK","PK","GK","GT","PT","ROK","KWARTAL","DAT_SKW","UWAGI","F1002","F1003","F1004","F1005","F1006","F1007","F1008","F2002","F2003","F2004","F2005","F2006","F2007","F2008","F3002","F3003","F3004","F3005","F3006","F3007","F3008"]
[{"$f":"'10-JEDNOSTKI BUDZETOWE'!A8","v":""},{"$f":"IF(LEN('10-JEDNOSTKI BUDZETOWE'!M11)=1,\"0\"&'10-JEDNOSTKI BUDZETOWE'!M11,'10-JEDNOSTKI BUDZETOWE'!M11)","v":0},null,null,null,null,{"$f":"'10-JEDNOSTKI BUDZETOWE'!L11","v":10},{"$f":"'10-JEDNOSTKI BUDZETOWE'!K8","v":0},{"$f":"'10-JEDNOSTKI BUDZETOWE'!H8","v":0},null,null,{"$f":"'10-JEDNOSTKI BUDZETOWE'!F46","v":0},{"$f":"'10-JEDNOSTKI BUDZETOWE'!G46","v":0},{"$f":"'10-JEDNOSTKI BUDZETOWE'!H46","v":0},{"$f":"'10-JEDNOSTKI BUDZETOWE'!I46","v":0},{"$f":"'10-JEDNOSTKI BUDZETOWE'!J46","v":0},{"$f":"'10-JEDNOSTKI BUDZETOWE'!K46","v":0},{"$f":"'10-JEDNOSTKI BUDZETOWE'!L46","v":0},{"$f":"'10-JEDNOSTKI BUDZETOWE'!F47","v":0},{"$f":"'10-JEDNOSTKI BUDZETOWE'!G47","v":0},{"$f":"'10-JEDNOSTKI BUDZETOWE'!H47","v":0},{"$f":"'10-JEDNOSTKI BUDZETOWE'!I47","v":0},{"$f":"'10-JEDNOSTKI BUDZETOWE'!J47","v":0},{"$f":"'10-JEDNOSTKI BUDZETOWE'!K47","v":0},{"$f":"'10-JEDNOSTKI BUDZETOWE'!L47","v":0},{"$f":"'10-JEDNOSTKI BUDZETOWE'!F48","v":0},{"$f":"'10-JEDNOSTKI BUDZETOWE'!G48","v":0},{"$f":"'10-JEDNOSTKI BUDZETOWE'!H48","v":0},{"$f":"'10-JEDNOSTKI BUDZETOWE'!I48","v":0},{"$f":"'10-JEDNOSTKI BUDZETOWE'!J48","v":0},{"$f":"'10-JEDNOSTKI BUDZETOWE'!K48","v":0},{"$f":"'10-JEDNOSTKI BUDZETOWE'!L48","v":0}]
[{"$f":"'40-FUNDUSZE CELOWE'!A8","v":""},{"$f":"IF(LEN('40-FUNDUSZE CELOWE'!M11)=1,\"0\"&'40-FUNDUSZE CELOWE'!M11,'40-FUNDUSZE CELOWE'!M11)","v":0},null,null,null,null,{"$f":"'40-FUNDUSZE CELOWE'!L11","v":40},{"$f":"'40-FUNDUSZE CELOWE'!K8","v":0},{"$f":"'40-FUNDUSZE CELOWE'!H8","v":0},null,null,{"$f":"'40-FUNDUSZE CELOWE'!F46","v":0},{"$f":"'40-FUNDUSZE CELOWE'!G46","v":0},{"$f":"'40-FUNDUSZE CELOWE'!H46","v":0},{"$f":"'40-FUNDUSZE CELOWE'!I46","v":0},{"$f":"'40-FUNDUSZE CELOWE'!J46","v":0},{"$f":"'40-FUNDUSZE CELOWE'!K46","v":0},{"$f":"'40-FUNDUSZE CELOWE'!L46","v":0},{"$f":"'40-FUNDUSZE CELOWE'!F47","v":0},{"$f":"'40-FUNDUSZE CELOWE'!G47","v":0},{"$f":"'40-FUNDUSZE CELOWE'!H47","v":0},{"$f":"'40-FUNDUSZE CELOWE'!I47","v":0},{"$f":"'40-FUNDUSZE CELOWE'!J47","v":0},{"$f":"'40-FUNDUSZE CELOWE'!K47","v":0},{"$f":"'40-FUNDUSZE CELOWE'!L47","v":0},{"$f":"'40-FUNDUSZE CELOWE'!F48","v":0},{"$f":"'40-FUNDUSZE CELOWE'!G48","v":0},{"$f":"'40-FUNDUSZE CELOWE'!H48","v":0},{"$f":"'40-FUNDUSZE CELOWE'!I48","v":0},{"$f":"'40-FUNDUSZE CELOWE'!J48","v":0},{"$f":"'40-FUNDUSZE CELOWE'!K48","v":0},{"$f":"'40-FUNDUSZE CELOWE'!L48","v":0}]
[{"$f":"'99-DYSPONENT ZBIORCZO'!A8","v":"Brak regonu"},{"$f":"'99-DYSPONENT ZBIORCZO'!M11","v":"Brak numeru cz. b."},null,null,null,null,{"$f":"'99-DYSPONENT ZBIORCZO'!L11","v":99},{"$f":"'99-DYSPONENT ZBIORCZO'!K8","v":"Brak roku"},{"$f":"'99-DYSPONENT ZBIORCZO'!H8","v":"Brak nr kwartału"},null,null,{"$f":"'99-DYSPONENT ZBIORCZO'!F46","v":0},{"$f":"'99-DYSPONENT ZBIORCZO'!G46","v":0},{"$f":"'99-DYSPONENT ZBIORCZO'!H46","v":0},{"$f":"'99-DYSPONENT ZBIORCZO'!I46","v":0},{"$f":"'99-DYSPONENT ZBIORCZO'!J46","v":0},{"$f":"'99-DYSPONENT ZBIORCZO'!K46","v":0},{"$f":"'99-DYSPONENT ZBIORCZO'!L46","v":0},{"$f":"'99-DYSPONENT ZBIORCZO'!F47","v":0},{"$f":"'99-DYSPONENT ZBIORCZO'!G47","v":0},{"$f":"'99-DYSPONENT ZBIORCZO'!H47","v":0},{"$f":"'99-DYSPONENT ZBIORCZO'!I47","v":0},{"$f":"'99-DYSPONENT ZBIORCZO'!J47","v":0},{"$f":"'99-DYSPONENT ZBIORCZO'!K47","v":0},{"$f":"'99-DYSPONENT ZBIORCZO'!L47","v":0},{"$f":"'99-DYSPONENT ZBIORCZO'!F48","v":0},{"$f":"'99-DYSPONENT ZBIORCZO'!G48","v":0},{"$f":"'99-DYSPONENT ZBIORCZO'!H48","v":0},{"$f":"'99-DYSPONENT ZBIORCZO'!I48","v":0},{"$f":"'99-DYSPONENT ZBIORCZO'!J48","v":0},{"$f":"'99-DYSPONENT ZBIORCZO'!K48","v":0},{"$f":"'99-DYSPONENT ZBIORCZO'!L48","v":0}]

{"sheet":"RBZC","index":6,"n_rows":4,"n_cols":68,"rows_kept":4,"cut":false,"hidden":true,"merged":[]}
["REGON","CZ_BU","WK","PK","GK","GT","PT","ROK","KWARTAL","DAT_SKW","UWAGI","C1001","C1002","C1003","C1004","C1005","C1006","C2001","C2002","C3102","C3103","C3104","C3105","C3106","C3107","C3108","C3202","C3203","C3204","C3205","C3206","C3207","C3208","C3302","C3303","C3304","C3305","C3306","C3307","C3308","C3402","C3403","C3404","C3405","C3406","C3407","C3408","C3502","C3503","C3504","C3505","C3506","C3507","C3508","C3602","C3603","C3604","C3605","C3606","C3607","C3608","C3702","C3703","C3704","C3705","C3706","C3707","C3708"]
[{"$f":"'10-JEDNOSTKI BUDZETOWE'!A8","v":""},{"$f":"IF(LEN('10-JEDNOSTKI BUDZETOWE'!M11)=1,\"0\"&'10-JEDNOSTKI BUDZETOWE'!M11,'10-JEDNOSTKI BUDZETOWE'!M11)","v":0},null,null,null,null,{"$f":"'10-JEDNOSTKI BUDZETOWE'!L11","v":10},{"$f":"'10-JEDNOSTKI BUDZETOWE'!K8","v":0},{"$f":"'10-JEDNOSTKI BUDZETOWE'!H8","v":0},null,null,{"$f":"'10-JEDNOSTKI BUDZETOWE'!F56","v":0},{"$f":"'10-JEDNOSTKI BUDZETOWE'!G56","v":0},{"$f":"'10-JEDNOSTKI BUDZETOWE'!H56","v":0},{"$f":"'10-JEDNOSTKI BUDZETOWE'!I56","v":0},{"$f":"'10-JEDNOSTKI BUDZETOWE'!H57","v":0},{"$f":"'10-JEDNOSTKI BUDZETOWE'!I57","v":0},{"$f":"'10-JEDNOSTKI BUDZETOWE'!D62","v":0},{"$f":"'10-JEDNOSTKI BUDZETOWE'!E62","v":0},{"$f":"'10-JEDNOSTKI BUDZETOWE'!D69","v":0},{"$f":"'10-JEDNOSTKI BUDZETOWE'!E69","v":0},{"$f":"'10-JEDNOSTKI BUDZETOWE'!F69","v":0},{"$f":"'10-JEDNOSTKI BUDZETOWE'!G69","v":0},{"$f":"'10-JEDNOSTKI BUDZETOWE'!H69","v":0},{"$f":"'10-JEDNOSTKI BUDZETOWE'!I69","v":0},{"$f":"'10-JEDNOSTKI BUDZETOWE'!J69","v":0},{"$f":"'10-JEDNOSTKI BUDZETOWE'!D70","v":0},{"$f":"'10-JEDNOSTKI BUDZETOWE'!E70","v":0},{"$f":"'10-JEDNOSTKI BUDZETOWE'!F70","v":0},{"$f":"'10-JEDNOSTKI BUDZETOWE'!G70","v":0},{"$f":"'10-JEDNOSTKI BUDZETOWE'!H70","v":0},{"$f":"'10-JEDNOSTKI BUDZETOWE'!I70","v":0},{"$f":"'10-JEDNOSTKI BUDZETOWE'!J70","v":0},{"$f":"'10-JEDNOSTKI BUDZETOWE'!D71","v":0},{"$f":"'10-JEDNOSTKI BUDZETOWE'!E71","v":0},{"$f":"'10-JEDNOSTKI BUDZETOWE'!F71","v":0},{"$f":"'10-JEDNOSTKI BUDZETOWE'!G71","v":0},{"$f":"'10-JEDNOSTKI BUDZETOWE'!H71","v":0},{"$f":"'10-JEDNOSTKI BUDZETOWE'!I71","v":0},{"$f":"'10-JEDNOSTKI BUDZETOWE'!J71","v":0},{"$f":"'10-JEDNOSTKI BUDZETOWE'!D72","v":0},{"$f":"'10-JEDNOSTKI BUDZETOWE'!E72","v":0},{"$f":"'10-JEDNOSTKI BUDZETOWE'!F72","v":0},{"$f":"'10-JEDNOSTKI BUDZETOWE'!G72","v":0},{"$f":"'10-JEDNOSTKI BUDZETOWE'!H72","v":0},{"$f":"'10-JEDNOSTKI BUDZETOWE'!I72","v":0},{"$f":"'10-JEDNOSTKI BUDZETOWE'!J72","v":0},{"$f":"'10-JEDNOSTKI BUDZETOWE'!D73","v":0},{"$f":"'10-JEDNOSTKI BUDZETOWE'!E73","v":0},{"$f":"'10-JEDNOSTKI BUDZETOWE'!F73","v":0},{"$f":"'10-JEDNOSTKI BUDZETOWE'!G73","v":0},{"$f":"'10-JEDNOSTKI BUDZETOWE'!H73","v":0},{"$f":"'10-JEDNOSTKI BUDZETOWE'!I73","v":0},{"$f":"'10-JEDNOSTKI BUDZETOWE'!J73","v":0},{"$f":"'10-JEDNOSTKI BUDZETOWE'!D74","v":0},{"$f":"'10-JEDNOSTKI BUDZETOWE'!E74","v":0},{"$f":"'10-JEDNOSTKI BUDZETOWE'!F74","v":0},{"$f":"'10-JEDNOSTKI BUDZETOWE'!G74","v":0},{"$f":"'10-JEDNOSTKI BUDZETOWE'!H74","v":0},{"$f":"'10-JEDNOSTKI BUDZETOWE'!I74","v":0},{"$f":"'10-JEDNOSTKI BUDZETOWE'!J74","v":0},{"$f":"'10-JEDNOSTKI BUDZETOWE'!D75","v":0},{"$f":"'10-JEDNOSTKI BUDZETOWE'!E75","v":0},{"$f":"'10-JEDNOSTKI BUDZETOWE'!F75","v":0},{"$f":"'10-JEDNOSTKI BUDZETOWE'!G75","v":0},{"$f":"'10-JEDNOSTKI BUDZETOWE'!H75","v":0},{"$f":"'10-JEDNOSTKI BUDZETOWE'!I75","v":0},{"$f":"'10-JEDNOSTKI BUDZETOWE'!J75","v":0}]
[{"$f":"'40-FUNDUSZE CELOWE'!A8","v":""},{"$f":"IF(LEN('40-FUNDUSZE CELOWE'!M11)=1,\"0\"&'40-FUNDUSZE CELOWE'!M11,'40-FUNDUSZE CELOWE'!M11)","v":0},null,null,null,null,{"$f":"'40-FUNDUSZE CELOWE'!L11","v":40},{"$f":"'40-FUNDUSZE CELOWE'!K8","v":0},{"$f":"'40-FUNDUSZE CELOWE'!H8","v":0},null,null,{"$f":"'40-FUNDUSZE CELOWE'!F56","v":0},{"$f":"'40-FUNDUSZE CELOWE'!G56","v":0},{"$f":"'40-FUNDUSZE CELOWE'!H56","v":0},{"$f":"'40-FUNDUSZE CELOWE'!I56","v":0},{"$f":"'40-FUNDUSZE CELOWE'!H57","v":0},{"$f":"'40-FUNDUSZE CELOWE'!I57","v":0},{"$f":"'40-FUNDUSZE CELOWE'!D62","v":0},{"$f":"'40-FUNDUSZE CELOWE'!E62","v":0},{"$f":"'40-FUNDUSZE CELOWE'!D69","v":0},{"$f":"'40-FUNDUSZE CELOWE'!E69","v":0},{"$f":"'40-FUNDUSZE CELOWE'!F69","v":0},{"$f":"'40-FUNDUSZE CELOWE'!G69","v":0},{"$f":"'40-FUNDUSZE CELOWE'!H69","v":0},{"$f":"'40-FUNDUSZE CELOWE'!I69","v":0},{"$f":"'40-FUNDUSZE CELOWE'!J69","v":0},{"$f":"'40-FUNDUSZE CELOWE'!D70","v":0},{"$f":"'40-FUNDUSZE CELOWE'!E70","v":0},{"$f":"'40-FUNDUSZE CELOWE'!F70","v":0},{"$f":"'40-FUNDUSZE CELOWE'!G70","v":0},{"$f":"'40-FUNDUSZE CELOWE'!H70","v":0},{"$f":"'40-FUNDUSZE CELOWE'!I70","v":0},{"$f":"'40-FUNDUSZE CELOWE'!J70","v":0},{"$f":"'40-FUNDUSZE CELOWE'!D71","v":0},{"$f":"'40-FUNDUSZE CELOWE'!E71","v":0},{"$f":"'40-FUNDUSZE CELOWE'!F71","v":0},{"$f":"'40-FUNDUSZE CELOWE'!G71","v":0},{"$f":"'40-FUNDUSZE CELOWE'!H71","v":0},{"$f":"'40-FUNDUSZE CELOWE'!I71","v":0},{"$f":"'40-FUNDUSZE CELOWE'!J71","v":0},{"$f":"'40-FUNDUSZE CELOWE'!D72","v":0},{"$f":"'40-FUNDUSZE CELOWE'!E72","v":0},{"$f":"'40-FUNDUSZE CELOWE'!F72","v":0},{"$f":"'40-FUNDUSZE CELOWE'!G72","v":0},{"$f":"'40-FUNDUSZE CELOWE'!H72","v":0},{"$f":"'40-FUNDUSZE CELOWE'!I72","v":0},{"$f":"'40-FUNDUSZE CELOWE'!J72","v":0},{"$f":"'40-FUNDUSZE CELOWE'!D73","v":0},{"$f":"'40-FUNDUSZE CELOWE'!E73","v":0},{"$f":"'40-FUNDUSZE CELOWE'!F73","v":0},{"$f":"'40-FUNDUSZE CELOWE'!G73","v":0},{"$f":"'40-FUNDUSZE CELOWE'!H73","v":0},{"$f":"'40-FUNDUSZE CELOWE'!I73","v":0},{"$f":"'40-FUNDUSZE CELOWE'!J73","v":0},{"$f":"'40-FUNDUSZE CELOWE'!D74","v":0},{"$f":"'40-FUNDUSZE CELOWE'!E74","v":0},{"$f":"'40-FUNDUSZE CELOWE'!F74","v":0},{"$f":"'40-FUNDUSZE CELOWE'!G74","v":0},{"$f":"'40-FUNDUSZE CELOWE'!H74","v":0},{"$f":"'40-FUNDUSZE CELOWE'!I74","v":0},{"$f":"'40-FUNDUSZE CELOWE'!J74","v":0},{"$f":"'40-FUNDUSZE CELOWE'!D75","v":0},{"$f":"'40-FUNDUSZE CELOWE'!E75","v":0},{"$f":"'40-FUNDUSZE CELOWE'!F75","v":0},{"$f":"'40-FUNDUSZE CELOWE'!G75","v":0},{"$f":"'40-FUNDUSZE CELOWE'!H75","v":0},{"$f":"'40-FUNDUSZE CELOWE'!I75","v":0},{"$f":"'40-FUNDUSZE CELOWE'!J75","v":0}]
[{"$f":"'99-DYSPONENT ZBIORCZO'!A8","v":"Brak regonu"},{"$f":"'99-DYSPONENT ZBIORCZO'!M11","v":"Brak numeru cz. b."},null,null,null,null,{"$f":"'99-DYSPONENT ZBIORCZO'!L11","v":99},{"$f":"'99-DYSPONENT ZBIORCZO'!K8","v":"Brak roku"},{"$f":"'99-DYSPONENT ZBIORCZO'!H8","v":"Brak nr kwartału"},null,null,{"$f":"'99-DYSPONENT ZBIORCZO'!F56","v":0},{"$f":"'99-DYSPONENT ZBIORCZO'!G56","v":0},{"$f":"'99-DYSPONENT ZBIORCZO'!H56","v":0},{"$f":"'99-DYSPONENT ZBIORCZO'!I56","v":0},{"$f":"'99-DYSPONENT ZBIORCZO'!H57","v":0},{"$f":"'99-DYSPONENT ZBIORCZO'!I57","v":0},{"$f":"'99-DYSPONENT ZBIORCZO'!D62","v":0},{"$f":"'99-DYSPONENT ZBIORCZO'!E62","v":0},{"$f":"'99-DYSPONENT ZBIORCZO'!D71","v":0},{"$f":"'99-DYSPONENT ZBIORCZO'!E69","v":0},{"$f":"'99-DYSPONENT ZBIORCZO'!F69","v":0},{"$f":"'99-DYSPONENT ZBIORCZO'!G69","v":0},{"$f":"'99-DYSPONENT ZBIORCZO'!H69","v":0},{"$f":"'99-DYSPONENT ZBIORCZO'!I69","v":0},{"$f":"'99-DYSPONENT ZBIORCZO'!J69","v":0},{"$f":"'99-DYSPONENT ZBIORCZO'!D70","v":0},{"$f":"'99-DYSPONENT ZBIORCZO'!E70","v":0},{"$f":"'99-DYSPONENT ZBIORCZO'!F70","v":0},{"$f":"'99-DYSPONENT ZBIORCZO'!G70","v":0},{"$f":"'99-DYSPONENT ZBIORCZO'!H70","v":0},{"$f":"'99-DYSPONENT ZBIORCZO'!I70","v":0},{"$f":"'99-DYSPONENT ZBIORCZO'!J70","v":0},{"$f":"'99-DYSPONENT ZBIORCZO'!D71","v":0},{"$f":"'99-DYSPONENT ZBIORCZO'!E71","v":0},{"$f":"'99-DYSPONENT ZBIORCZO'!F71","v":0},{"$f":"'99-DYSPONENT ZBIORCZO'!G71","v":0},{"$f":"'99-DYSPONENT ZBIORCZO'!H71","v":0},{"$f":"'99-DYSPONENT ZBIORCZO'!I71","v":0},{"$f":"'99-DYSPONENT ZBIORCZO'!J71","v":0},{"$f":"'99-DYSPONENT ZBIORCZO'!D72","v":0},{"$f":"'99-DYSPONENT ZBIORCZO'!E72","v":0},{"$f":"'99-DYSPONENT ZBIORCZO'!F72","v":0},{"$f":"'99-DYSPONENT ZBIORCZO'!G72","v":0},{"$f":"'99-DYSPONENT ZBIORCZO'!H72","v":0},{"$f":"'99-DYSPONENT ZBIORCZO'!I72","v":0},{"$f":"'99-DYSPONENT ZBIORCZO'!J72","v":0},{"$f":"'99-DYSPONENT ZBIORCZO'!D73","v":0},{"$f":"'99-DYSPONENT ZBIORCZO'!E73","v":0},{"$f":"'99-DYSPONENT ZBIORCZO'!F73","v":0},{"$f":"'99-DYSPONENT ZBIORCZO'!G73","v":0},{"$f":"'99-DYSPONENT ZBIORCZO'!H73","v":0},{"$f":"'99-DYSPONENT ZBIORCZO'!I73","v":0},{"$f":"'99-DYSPONENT ZBIORCZO'!J73","v":0},{"$f":"'99-DYSPONENT ZBIORCZO'!D74","v":0},{"$f":"'99-DYSPONENT ZBIORCZO'!E74","v":0},{"$f":"'99-DYSPONENT ZBIORCZO'!F74","v":0},{"$f":"'99-DYSPONENT ZBIORCZO'!G74","v":0},{"$f":"'99-DYSPONENT ZBIORCZO'!H74","v":0},{"$f":"'99-DYSPONENT ZBIORCZO'!I74","v":0},{"$f":"'99-DYSPONENT ZBIORCZO'!J74","v":0},{"$f":"'99-DYSPONENT ZBIORCZO'!D75","v":0},{"$f":"'99-DYSPONENT ZBIORCZO'!E75","v":0},{"$f":"'99-DYSPONENT ZBIORCZO'!F75","v":0},{"$f":"'99-DYSPONENT ZBIORCZO'!G75","v":0},{"$f":"'99-DYSPONENT ZBIORCZO'!H75","v":0},{"$f":"'99-DYSPONENT ZBIORCZO'!I75","v":0},{"$f":"'99-DYSPONENT ZBIORCZO'!J75","v":0}]

{"sheet":"RBZD","index":7,"n_rows":4,"n_cols":13,"rows_kept":4,"cut":false,"hidden":true,"merged":[]}
["REGON","CZ_BU","WK","PK","GK","GT","PT","ROK","KWARTAL","DAT_SKW","UWAGI","D0001","D0002"]
[{"$f":"'10-JEDNOSTKI BUDZETOWE'!A8","v":""},{"$f":"IF(LEN('10-JEDNOSTKI BUDZETOWE'!M11)=1,\"0\"&'10-JEDNOSTKI BUDZETOWE'!M11,'10-JEDNOSTKI BUDZETOWE'!M11)","v":0},null,null,null,null,{"$f":"'10-JEDNOSTKI BUDZETOWE'!L11","v":10},{"$f":"'10-JEDNOSTKI BUDZETOWE'!K8","v":0},{"$f":"'10-JEDNOSTKI BUDZETOWE'!H8","v":0},null,null,{"$f":"'10-JEDNOSTKI BUDZETOWE'!C81","v":0},{"$f":"'10-JEDNOSTKI BUDZETOWE'!C82","v":0}]
[{"$f":"'40-FUNDUSZE CELOWE'!A8","v":""},{"$f":"IF(LEN('40-FUNDUSZE CELOWE'!M11)=1,\"0\"&'40-FUNDUSZE CELOWE'!M11,'40-FUNDUSZE CELOWE'!M11)","v":0},null,null,null,null,{"$f":"'40-FUNDUSZE CELOWE'!L11","v":40},{"$f":"'40-FUNDUSZE CELOWE'!K8","v":0},{"$f":"'40-FUNDUSZE CELOWE'!H8","v":0},null,null,{"$f":"'40-FUNDUSZE CELOWE'!C81","v":0},{"$f":"'40-FUNDUSZE CELOWE'!C82","v":0}]
[{"$f":"'99-DYSPONENT ZBIORCZO'!A8","v":"Brak regonu"},{"$f":"'99-DYSPONENT ZBIORCZO'!M11","v":"Brak numeru cz. b."},null,null,null,null,{"$f":"'99-DYSPONENT ZBIORCZO'!L11","v":99},{"$f":"'99-DYSPONENT ZBIORCZO'!K8","v":"Brak roku"},{"$f":"'99-DYSPONENT ZBIORCZO'!H8","v":"Brak nr kwartału"},null,null,{"$f":"'99-DYSPONENT ZBIORCZO'!C81","v":0},{"$f":"'99-DYSPONENT ZBIORCZO'!C82","v":0}]